Department Family,Entity,Date,Expense Type,Expense Area,Supplier,Transaction Number,Amount,Description
Ministry of Justice,MoJ HQ,22-Oct-12,246000-Current Grants,RC999-Criminal Justice Group - OMS,CLINKS,1085358,"25,000.00",Voluntary & Community Sector Grant - Provision of Offender Services
Ministry of Justice,MoJ HQ,22-Oct-12,246000-Current Grants,RG999-CFLAP Accumulator,MONEY ADVICE TRUST,1085444,"25,000.00","""Grant payment to support the work in the field of advice services.  Funding for 2012-13. """
Ministry of Justice,MoJ HQ,08-Oct-12,265000-IT & Telecommunications,"RD999-CJG - DGs Office, BDSU, Inspectorates & Ombudsman",THE VIEWPOINT ORGANISATION (EUROPE) LTD,1084474,"26,290.00",Viewpoint YOS Survey -  Period 2012-2017
Ministry of Justice,MoJ HQ,08-Oct-12,223001-Printing Postage and Office expenditure,RG999-CFLAP Accumulator,IMPACT MARCOM LTD,1084325,"26,785.00",Impact Marcom Limited to  supplying & be responsible for all the equipment that will be used during the Azelle Rodney Inquiry Hearings.
Ministry of Justice,MoJ HQ,22-Oct-12,266000-Judicial Costs,MF600-Directorate of Judicial Offices,CALDER CONFERENCES LTD,1085350,"27,924.33",Venue Hire relating to training events for Judiciary
Ministry of Justice,MoJ HQ,08-Oct-12,246000-Current Grants,RB999-JPG - CJRD,DOMESTIC VIOLENCE AND ABUSE SERVICE (SOUTH AND WEST DEVON),1084274,"28,273.50",Payment of grant to voluntary sector organisations to provide specialist support from Victim & Witness General Fund
Ministry of Justice,MoJ HQ,08-Oct-12,246000-Current Grants,RB999-JPG - CJRD,LIGHTHOUSE WOMEN'S AID LTD TRADING AS IPSWICH WOMEN'S AID,1084351,"29,903.50",Payment of grant to voluntary sector organisations to provide specialist support from Victim & Witness General Fund
Ministry of Justice,MoJ HQ,22-Oct-12,246000-Current Grants,RC999-Criminal Justice Group - OMS,CLINKS,1085358,"30,000.00",Voluntary & Community Sector Grant - Provision of Offender Services
Ministry of Justice,MoJ HQ,08-Oct-12,246000-Current Grants,RB999-JPG - CJRD,IPSWICH AND SUFFOLK COUNCIL FOR RACIAL EQUALITY,1084328,"31,450.00",Payment of grant to voluntary sector organisations to provide specialist support from Victim & Witness General Fund
Ministry of Justice,MoJ HQ,23-Oct-12,263000-Other Contracted Out Services,RC999-Criminal Justice Group - OMS,NATIONAL OFFENDERS MANAGEMENT SERVICE (NOMS),2158,"32,000.96",Parc YOI Contract - FY 12-13
Ministry of Justice,MoJ HQ,25-Oct-12,266000-Judicial Costs,MF600-Directorate of Judicial Offices,CALDER CONFERENCES LTD,1085584,"35,680.83","Venue Hire, Accomodation and other costs relating to Judicial Training Conferences"
Ministry of Justice,MoJ HQ,18-Oct-12,246000-Current Grants,RC999-Criminal Justice Group - OMS,BLACK TRAINING AND ENTERPRISE GROUP,1085053,"37,500.00","Voluntary & Community Sector Grant - Provision of services to Black, Asian & minority ethnic offenders"
Ministry of Justice,MoJ HQ,25-Oct-12,263000-Other Contracted Out Services,RC999-Criminal Justice Group - OMS,NATIONAL OFFENDERS MANAGEMENT SERVICE (NOMS),1085691,"40,001.20",Parc YOI Contract - FY 12-13
Ministry of Justice,MoJ HQ,22-Oct-12,266000-Judicial Costs,MF600-Directorate of Judicial Offices,CALDER CONFERENCES LTD,1085350,"41,873.48","Venue Hire, Accomodation and other costs relating to Judicial Training Conferences"
Ministry of Justice,MoJ HQ,18-Oct-12,246000-Current Grants,RC999-Criminal Justice Group - OMS,WOMENCENTRE LTD,1085312,"50,000.00",Voluntary & Community Sector Grant - Provision of services to women offenders 
Ministry of Justice,MoJ HQ,08-Oct-12,246000-Current Grants,RB999-JPG - CJRD,NSPCC,1084376,"50,011.60",Payment of grant to voluntary sector organisations to provide specialist support from Victim & Witness General Fund
Ministry of Justice,MoJ HQ,18-Oct-12,246000-Current Grants,RC999-Criminal Justice Group - OMS,ACTION FOR PRISONERS FAMILIES,1085022,"60,000.00",Voluntary & Community Sector Grant - Provision of services to families of prisoners and other offenders
Ministry of Justice,MoJ HQ,22-Oct-12,246000-Current Grants,RC999-Criminal Justice Group - OMS,CLINKS,1085358,"222,100.00",Voluntary & Community Sector Grant - Provision of Offender Services
Ministry of Justice,MoJ HQ,18-Oct-12,223000-Other Expenditure,RB999-JPG - CJRD,VICTIM SUPPORT,1085300,"307,455.00",Payment to voluntary sector organisations - Victim Support Projects
Ministry of Justice,MoJ HQ,23-Oct-12,263000-Other Contracted Out Services,RC999-Criminal Justice Group - OMS,NATIONAL OFFENDERS MANAGEMENT SERVICE (NOMS),2159,"325,939.20",Parc YOI Contract - FY 12-13
Ministry of Justice,MoJ HQ,15-Oct-12,263000-Other Contracted Out Services,RC999-Criminal Justice Group - OMS,MEDOMSLEY TRAINING SERVICES LTD,1084908,"640,029.60","Operation Delivery services in respect of Prisons, YOIs or STCs"
Ministry of Justice,MoJ HQ,15-Oct-12,263000-Other Contracted Out Services,RC999-Criminal Justice Group - OMS,ECD (ONLEY) LTD,1084840,"1,237,694.10","Operation Delivery services in respect of Prisons, YOIs or STCs"
Ministry of Justice,MoJ HQ,15-Oct-12,263000-Other Contracted Out Services,RC999-Criminal Justice Group - OMS,ECD (COOKHAM WOOD) LTD,1084839,"1,364,081.11","Operation Delivery services in respect of Prisons, YOIs or STCs"
Ministry of Justice,MoJ HQ,29-Oct-12,228000-Prisoner Related Costs,RC999-Criminal Justice Group - OMS,EDUCATIONAL FUNDING AGENCY,1085859,"3,185,727.00",To provide education to young people in custody
Ministry of Justice,MoJ HQ,29-Oct-12,228000-Prisoner Related Costs,RC999-Criminal Justice Group - OMS,EDUCATIONAL FUNDING AGENCY,1085859,"3,185,727.00",To provide education to young people in custody
Ministry of Justice,MoJ HQ,08-Oct-12,246000-Current Grants,RB999-JPG - CJRD,VICTIM SUPPORT,1084482,"9,279,000.00",Payment of grant to voluntary sector organisations - Core Victim Support Grant
Ministry of Justice,MoJ HQ,05-Oct-12,245000-Grants in Aid to NDPBs,RC999-Criminal Justice Group - OMS,YOUTH JUSTICE BOARD FOR ENGLAND & WALES,6602,"40,550,000.00",Grant-in-aid requirement for Arm's Length Body
Ministry of Justice,MoJ HQ,09-Oct-12,222002-Other Property Costs,NZ406-Strategic Estates Feeder,LEGAL SERVICES COMMISSION (LSC),2097,"25,135.00",Quarter 1 recharge for MoJ Leeds office costs
Ministry of Justice,MoJ HQ,25-Oct-12,222001-Maintenance,NZ406-Strategic Estates Feeder,INSTITUTE FOR GOVERNMENT,1085647,"45,306.68",Quarter 1 charges for Site Management Recources
Ministry of Justice,MoJ HQ,18-Oct-12,261000-Fuel and Utilities,NZ406-Strategic Estates Feeder,EDF ENERGY LTD,1085114,"56,729.16","Electricity supply in 2012-13 to: 102 Petty France, Steel House and Clive House."
Ministry of Justice,MoJ HQ,11-Oct-12,222001-Maintenance,NZ406-Strategic Estates Feeder,HOME OFFICE,2102,"60,698.40",Dilapidation works to Dyke Road-costs incurred by HOPG
Ministry of Justice,MoJ HQ,23-Oct-12,221000-Property Rent and Rates,NZ406-Strategic Estates Feeder,CITY OF WESTMINSTER,1085529,"60,945.00",Business Rates - Ashley House
Ministry of Justice,MoJ HQ,04-Oct-12,221000-Property Rent and Rates,NZ406-Strategic Estates Feeder,BNP PARIBAS REAL ESTATE,1083945,"62,500.00",Rent - 2 Carlton Gardens
Ministry of Justice,MoJ HQ,01-Oct-12,261000-Fuel and Utilities,NZ406-Strategic Estates Feeder,EDF ENERGY LTD,1083777,"63,164.38","Electricity supply in 2012-13 to: 102 Petty France, Steel House and Clive House."
Ministry of Justice,MoJ HQ,11-Oct-12,261000-Fuel and Utilities,NZ406-Strategic Estates Feeder,EDF ENERGY LTD,1084597,"63,831.04","Electricity supply in 2012-13 to: 102 Petty France, Steel House and Clive House."
Ministry of Justice,MoJ HQ,22-Oct-12,265000-IT & Telecommunications,NZ406-Strategic Estates Feeder,ATOS IT SERVICES UK LTD,1085329,"84,875.00","A-S-03501-07-v01 WR068 YJB SharePoint Software, Third Party resources and business change						"
Ministry of Justice,MoJ HQ,25-Oct-12,222002-Other Property Costs,NZ406-Strategic Estates Feeder,LANCASTER CLEANING AND SUPPORT SERVICES,1085656,"90,579.90","Annual cost of cleaning services across the MoJ HQ Estate, 2012-13"
Ministry of Justice,MoJ HQ,11-Oct-12,222001-Maintenance,NZ406-Strategic Estates Feeder,M J FERGUSON LTD,1084667,"92,819.95",JOB NO: 00813MOJMF CLIVE HOUSE EMERGENCY LIGHTING
Ministry of Justice,MoJ HQ,11-Oct-12,222001-Maintenance,NZ406-Strategic Estates Feeder,M J FERGUSON LTD,1084667,"242,782.56","PPM monthly costs, June 2012-March 2013, across the MoJ HQ Estate. MTC monthly costs, June 2012-March 2013, across the MoJ HQ Estate."
Ministry of Justice,MoJ HQ,18-Oct-12,266000-Judicial Costs,LZ600-Transforming Justice,THOMSON REUTERS T/A SWEET & MAXWELL LTD,1085293,"30,700.80",Legal publications for the judiciary and courts
Ministry of Justice,MoJ HQ,08-Oct-12,223000-Other Expenditure,LZ600-Transforming Justice,CABINET OFFICE,2084,"45,000.00",Media Monitroing service for the period 01-04-2012 to 31-03-2013
Ministry of Justice,MoJ HQ,25-Oct-12,223000-Other Expenditure,LZ600-Transforming Justice,TNT UK LTD,1085778,"69,510.87",Monthly 'storage' and 'activity' costs for paper records stored by TNT on MoJ's behalf at its secure repositories at Swadlincote. 75k per month
Ministry of Justice,MoJ HQ,19-Oct-12,262000-SCA Costs,QZ500-Arms Length Bodies (CPG),NATIONAL SAVINGS & INVESTMENTS,2149,"101,259.00",Repayment to National Savings and Investments of loan to pay for modernisation development costs.
Ministry of Justice,MoJ HQ,23-Oct-12,262000-SCA Costs,QZ500-Arms Length Bodies (CPG),NATIONAL SAVINGS & INVESTMENTS,2160,"108,506.49",NSI Service Improvement Costs
Ministry of Justice,MoJ HQ,18-Oct-12,263000-Other Contracted Out Services,LZ600-Transforming Justice,STAFFORDSHIRE COUNTY COUNCIL,1085279,"173,780.83",Staffordshire Council County provides the Claims Management Regulation Monitoring and Compliance Unit under contract to the MOJ.
Ministry of Justice,MoJ HQ,23-Oct-12,262000-SCA Costs,QZ500-Arms Length Bodies (CPG),NATIONAL SAVINGS & INVESTMENTS,2161,"184,323.76",NSI Service Improvement Costs
Ministry of Justice,MoJ HQ,04-Oct-12,266000-Judicial Costs,LZ600-Transforming Justice,THOMSON REUTERS T/A SWEET & MAXWELL LTD,1084160,"252,840.00",Legal publications for the judiciary and courts
Ministry of Justice,MoJ HQ,01-Oct-12,265000-IT & Telecommunications,PZ501-MoJ ICT Feeder,HP ENTERPRISE SERVICES UK LTD,1083801,"25,595.44",HP ICT Network Services (VAT Rec) FY12/13 (Schedule)
Ministry of Justice,MoJ HQ,01-Oct-12,265000-IT & Telecommunications,PZ501-MoJ ICT Feeder,ATOS IT SERVICES UK LTD,1083736,"26,319.58",Atos ICT Other (VAT Rec) FY12/13 (Schedule)
Ministry of Justice,MoJ HQ,18-Oct-12,532000-Tangible GBV - Additions,PZ501-MoJ ICT Feeder,ATOS IT SERVICES UK LTD,1085031,"26,867.00","LSC Secure Enclave CCN2943-03 Accreditation - Mst 11 Secure Enclave Accreditation					"
Ministry of Justice,MoJ HQ,01-Oct-12,265000-IT & Telecommunications,PZ501-MoJ ICT Feeder,ATOS IT SERVICES UK LTD,1083736,"26,889.54",Atos ICT Other (VAT Rec) FY12/13 (Schedule)
Ministry of Justice,MoJ HQ,01-Oct-12,265000-IT & Telecommunications,PZ501-MoJ ICT Feeder,HP ENTERPRISE SERVICES UK LTD,1083801,"26,975.71",HP ICT Other (VAT Rec) FY12/13 (Schedule)
Ministry of Justice,MoJ HQ,18-Oct-12,532000-Tangible GBV - Additions,PZ501-MoJ ICT Feeder,ATOS IT SERVICES UK LTD,1085031,"27,559.30",A-R-02943-13 v.02 -HMCTS 033 LSC Secure Enclave Milestones 1 & 2 (one off cost)
Ministry of Justice,MoJ HQ,04-Oct-12,265000-IT & Telecommunications,PZ501-MoJ ICT Feeder,FUJITSU SERVICES LTD,1084007,"27,665.40",FJS Programme & Project Mgmt   Managed Service (Schedule)
Ministry of Justice,MoJ HQ,01-Oct-12,532000-Tangible GBV - Additions,PZ501-MoJ ICT Feeder,ATOS IT SERVICES UK LTD,1083736,"27,954.00","					 LSC Secure Enclave CCN2943-02 Build - Mst 5 Prod Enclave Bastion Tools Completion-PQ105					"
Ministry of Justice,MoJ HQ,01-Oct-12,532000-Tangible GBV - Additions,PZ501-MoJ ICT Feeder,STERIA LTD,1083881,"28,250.10",VTL Capacity Upgrade Implement (RFS 106857) (Schedule)
Ministry of Justice,MoJ HQ,01-Oct-12,265000-IT & Telecommunications,PZ501-MoJ ICT Feeder,HP ENTERPRISE SERVICES UK LTD,1083801,"28,493.36",HP ICT Telephony (NON VAT Rec) FY12/13 (Schedule)
Ministry of Justice,MoJ HQ,01-Oct-12,265000-IT & Telecommunications,PZ501-MoJ ICT Feeder,HP ENTERPRISE SERVICES UK LTD,1083801,"28,899.79",Java JRE Uplift - Quantum Estate - MCO vl.0
Ministry of Justice,MoJ HQ,18-Oct-12,532000-Tangible GBV - Additions,PZ501-MoJ ICT Feeder,FUJITSU SERVICES LTD,1085130,"29,075.67",EIP3SPF (E138) Fujitsu CCNF412 RSA Appliance Upgrade 
Ministry of Justice,MoJ HQ,01-Oct-12,265000-IT & Telecommunications,PZ501-MoJ ICT Feeder,HP ENTERPRISE SERVICES UK LTD,1083801,"30,595.12",HP ICT App Maint & Supp (VAT Rec) FY12/13 (Schedule)
Ministry of Justice,MoJ HQ,04-Oct-12,265000-IT & Telecommunications,PZ501-MoJ ICT Feeder,HP ENTERPRISE SERVICES UK LTD,1084043,"31,655.93",HP ICT Other (VAT Rec) FY12/13 (Schedule)
Ministry of Justice,MoJ HQ,08-Oct-12,265000-IT & Telecommunications,PZ501-MoJ ICT Feeder,LIBERATA UK LTD,1084349,"32,037.11",ICT Printing - Liberata Print Charges
Ministry of Justice,MoJ HQ,01-Oct-12,265000-IT & Telecommunications,PZ501-MoJ ICT Feeder,HP ENTERPRISE SERVICES UK LTD,1083801,"32,969.61",HP ICT App Maint & Supp (VAT Rec) FY12/13 (Schedule)
Ministry of Justice,MoJ HQ,01-Oct-12,265000-IT & Telecommunications,PZ501-MoJ ICT Feeder,ATOS IT SERVICES UK LTD,1083736,"33,470.37",ICT Network Services (Schedule)
Ministry of Justice,MoJ HQ,01-Oct-12,265000-IT & Telecommunications,PZ501-MoJ ICT Feeder,ATOS IT SERVICES UK LTD,1083736,"33,470.37",ICT Network Services (Schedule)
Ministry of Justice,MoJ HQ,04-Oct-12,532000-Tangible GBV - Additions,PZ501-MoJ ICT Feeder,CABLE & WIRELESS WORLDWIDE,1083955,"34,061.20",Video Equipment for Virtual Court/Live Link installation at Hatfield and Bromley Magistrates Courts
Ministry of Justice,MoJ HQ,04-Oct-12,265000-IT & Telecommunications,PZ501-MoJ ICT Feeder,FUJITSU SERVICES LTD,1084007,"34,464.98",FJS Governance   Managed Service (Schedule)
Ministry of Justice,MoJ HQ,01-Oct-12,265000-IT & Telecommunications,PZ501-MoJ ICT Feeder,HP ENTERPRISE SERVICES UK LTD,1083801,"34,467.00",HP ICT Telephony (NON VAT Rec) FY12/13 (Schedule)
Ministry of Justice,MoJ HQ,15-Oct-12,265000-IT & Telecommunications,PZ501-MoJ ICT Feeder,HP ENTERPRISE SERVICES UK LTD,1084872,"35,143.58",HP ICT Printing (VAT Rec) FY12/13 (Schedule)
Ministry of Justice,MoJ HQ,11-Oct-12,532000-Tangible GBV - Additions,PZ501-MoJ ICT Feeder,ATOS IT SERVICES UK LTD,1084526,"36,215.00","LSC Secure Enclave CCN2943-03 Accreditation - Mst 12 On Project Signoff & Closure					"
Ministry of Justice,MoJ HQ,18-Oct-12,532000-Tangible GBV - Additions,PZ501-MoJ ICT Feeder,CABLE & WIRELESS WORLDWIDE,1085074,"38,459.68",Video Equipment for Virtual Court/Live Link installation at three police custody suites
Ministry of Justice,MoJ HQ,18-Oct-12,532000-Tangible GBV - Additions,PZ501-MoJ ICT Feeder,CABLE & WIRELESS WORLDWIDE,1085074,"39,327.19",Video Equipment for Virtual Court/Live Link installation at three Magistrates Courts in Cheshire
Ministry of Justice,MoJ HQ,18-Oct-12,532000-Tangible GBV - Additions,PZ501-MoJ ICT Feeder,CABLE & WIRELESS WORLDWIDE,1085074,"40,553.53",Video Equipment for Virtual Court/Live Link installation at three Magistrates Courts in Cheshire
Ministry of Justice,MoJ HQ,01-Oct-12,265000-IT & Telecommunications,PZ501-MoJ ICT Feeder,STERIA LTD,1083881,"42,341.88",Steria ICT App Maint & Supp (VAT Rec) FY12/13 (Schedule)
Ministry of Justice,MoJ HQ,22-Oct-12,265000-IT & Telecommunications,PZ501-MoJ ICT Feeder,CAPITA BUSINESS SERVICES LTD,1085351,"42,375.00",Consultancy services provided by I2N during April 2012 - March 2013  IAPS Helpdesk & Maintenance (I2N Support & Maintenance)
Ministry of Justice,MoJ HQ,04-Oct-12,265000-IT & Telecommunications,PZ501-MoJ ICT Feeder,FUJITSU SERVICES LTD,1084007,"42,408.42",FJS Service Desk   Managed Service (Schedule)
Ministry of Justice,MoJ HQ,01-Oct-12,265000-IT & Telecommunications,PZ501-MoJ ICT Feeder,HP ENTERPRISE SERVICES UK LTD,1083801,"42,771.40",HP ICT Printing (VAT Rec) FY12/13 (Schedule)
Ministry of Justice,MoJ HQ,18-Oct-12,532000-Tangible GBV - Additions,PZ501-MoJ ICT Feeder,CABLE & WIRELESS WORLDWIDE,1085074,"43,484.68",Video Equipment for Virtual Court/Live Link installation at three police custody suites
Ministry of Justice,MoJ HQ,11-Oct-12,532000-Tangible GBV - Additions,PZ501-MoJ ICT Feeder,ATOS IT SERVICES UK LTD,1084526,"44,000.00",CCN A-R-2943-06 - LSC Secure Enclave CCN2943-06 Migration
Ministry of Justice,MoJ HQ,11-Oct-12,532000-Tangible GBV - Additions,PZ501-MoJ ICT Feeder,ATOS IT SERVICES UK LTD,1084526,"44,125.00",CCN A-R-2943-06 - LSC Secure Enclave CCN2943-06 Migration
Ministry of Justice,MoJ HQ,22-Oct-12,265000-IT & Telecommunications,PZ501-MoJ ICT Feeder,ATOS IT SERVICES UK LTD,1085329,"44,244.00",CCN A-R-0313-01-C03 - EPE refresh
Ministry of Justice,MoJ HQ,04-Oct-12,265000-IT & Telecommunications,PZ501-MoJ ICT Feeder,FUJITSU SERVICES LTD,1084007,"44,917.69",FJS Licensing  Managed Service (Schedule)
Ministry of Justice,MoJ HQ,04-Oct-12,265000-IT & Telecommunications,PZ501-MoJ ICT Feeder,FUJITSU SERVICES LTD,1084007,"46,332.54",FJS Operations - Other + Discount & Gain Share   Managed Service (Schedule)
Ministry of Justice,MoJ HQ,04-Oct-12,265000-IT & Telecommunications,PZ501-MoJ ICT Feeder,FUJITSU SERVICES LTD,1084007,"49,975.20","CCN No: F441 YJB Connectivity Relocation and Additional Support 01/08/12 - 31/07/13 ONGOING CHARGES				 					"
Ministry of Justice,MoJ HQ,01-Oct-12,265000-IT & Telecommunications,PZ501-MoJ ICT Feeder,ATOS IT SERVICES UK LTD,1083736,"50,077.65",ICT Telephony (Schedule)
Ministry of Justice,MoJ HQ,04-Oct-12,265000-IT & Telecommunications,PZ501-MoJ ICT Feeder,ATOS IT SERVICES UK LTD,1083930,"51,414.75","A-R-03199-02 - CCMS-EDRMS Connectivity & rich client access.					"
Ministry of Justice,MoJ HQ,15-Oct-12,532000-Tangible GBV - Additions,PZ501-MoJ ICT Feeder,FUJITSU SERVICES LTD,1084854,"52,772.58","LSC IDS CCNF439 Milestone 1 - Approval of IDD & agreement of CCN, LSC IDS CCNF439 Milestone 2 - Completion of LLD & Test Plans, LSC IDS CCNF439 Milestone 3 - Installation at BBP & LSC IDS CCNF439 Milestone 4 - Installation at ACP.						"
Ministry of Justice,MoJ HQ,02-Oct-12,265000-IT & Telecommunications,PZ501-MoJ ICT Feeder,HOME OFFICE,1083909,"53,058.66",
Ministry of Justice,MoJ HQ,15-Oct-12,265000-IT & Telecommunications,PZ501-MoJ ICT Feeder,ATOS IT SERVICES UK LTD,1084785,"53,384.00",CCN-3715-V04 - MERIS Server and Operating System Upgrade - One Off Costs
Ministry of Justice,MoJ HQ,01-Oct-12,265000-IT & Telecommunications,PZ501-MoJ ICT Feeder,HP ENTERPRISE SERVICES UK LTD,1083801,"54,529.86",HP ICT App Maint & Supp (VAT Rec) FY12/13 (Schedule)
Ministry of Justice,MoJ HQ,01-Oct-12,265000-IT & Telecommunications,PZ501-MoJ ICT Feeder,HP ENTERPRISE SERVICES UK LTD,1083801,"55,899.40",HP ICT App Maint & Supp (VAT Rec) FY12/13 (Schedule)
Ministry of Justice,MoJ HQ,24-Oct-12,265000-IT & Telecommunications,PZ501-MoJ ICT Feeder,NATIONAL OFFENDERS MANAGEMENT SERVICE (NOMS),2168,"58,475.56",Styal refurbishment costs
Ministry of Justice,MoJ HQ,25-Oct-12,265000-IT & Telecommunications,PZ501-MoJ ICT Feeder,DETICA LTD,1085611,"58,635.00",This PO is for the services of the IA Managed Service. For the period April-October 2012.   It relates to non-rechargeable costs (Schedule)
Ministry of Justice,MoJ HQ,25-Oct-12,265000-IT & Telecommunications,PZ501-MoJ ICT Feeder,ATOS IT SERVICES UK LTD,1085552,"63,001.00",CCN2277-01 - NOP Main CCN
Ministry of Justice,MoJ HQ,22-Oct-12,265000-IT & Telecommunications,PZ501-MoJ ICT Feeder,LOGICA UK LTD,1085426,"66,026.00","CCN 3030-03 - NOP, NLE, Early Adopters and NRO (one off cost)"
Ministry of Justice,MoJ HQ,31-Oct-12,265000-IT & Telecommunications,PZ501-MoJ ICT Feeder,HOME OFFICE IT,2195,"66,644.19",Monthly telephony charges for MOJ staff working on Home Office premises during the 2011/12 financial year
Ministry of Justice,MoJ HQ,04-Oct-12,265000-IT & Telecommunications,PZ501-MoJ ICT Feeder,HP ENTERPRISE SERVICES UK LTD,1084043,"66,722.60","HQ188 HP Offer for Parole Board Migration from POISE to Quantum						 							"
Ministry of Justice,MoJ HQ,11-Oct-12,532000-Tangible GBV - Additions,PZ501-MoJ ICT Feeder,ATOS IT SERVICES UK LTD,1084526,"67,257.00",CCN A-R-2943-06 - LSC Secure Enclave CCN2943-06 Migration
Ministry of Justice,MoJ HQ,29-Oct-12,265000-IT & Telecommunications,PZ501-MoJ ICT Feeder,STERIA LTD,1085990,"68,728.29",Steria ICT Other (VAT Rec) FY12/13 (Schedule)
Ministry of Justice,MoJ HQ,18-Oct-12,512000-Intangible GBV - Additions,PZ501-MoJ ICT Feeder,STERIA LTD,1085282,"71,554.58",EIP2NetSec (E134) Steria CCNS194-03 AV Host Implementation 
Ministry of Justice,MoJ HQ,04-Oct-12,265000-IT & Telecommunications,PZ501-MoJ ICT Feeder,HP ENTERPRISE SERVICES UK LTD,1084043,"71,661.00",HP ICT Hosting (VAT Rec) FY12/13 (Schedule)
Ministry of Justice,MoJ HQ,22-Oct-12,265000-IT & Telecommunications,PZ501-MoJ ICT Feeder,LOGICA UK LTD,1085426,"75,999.00","CCN 3030-03 - NOP, NLE, Early Adopters and NRO (one off cost)"
Ministry of Justice,MoJ HQ,11-Oct-12,532000-Tangible GBV - Additions,PZ501-MoJ ICT Feeder,ATOS IT SERVICES UK LTD,1084526,"80,000.00","LSC Secure Enclave CCN2943-03 Accreditation - Mst 10 Secure Enclave Authority to Operate					"
Ministry of Justice,MoJ HQ,04-Oct-12,265000-IT & Telecommunications,PZ501-MoJ ICT Feeder,HP ENTERPRISE SERVICES UK LTD,1084043,"81,282.29",HP ICT Other (VAT Rec) FY12/13 (Schedule)
Ministry of Justice,MoJ HQ,08-Oct-12,265000-IT & Telecommunications,PZ501-MoJ ICT Feeder,LIBERATA UK LTD,1084349,"81,840.71",ICT Printing - Liberata Print Charges
Ministry of Justice,MoJ HQ,08-Oct-12,265000-IT & Telecommunications,PZ501-MoJ ICT Feeder,IBM (UNITED KINGDOM) LTD,1084323,"87,627.97",Service Extension for Lotus Notes from 01/10/2012 to 30/09/2013
Ministry of Justice,MoJ HQ,01-Oct-12,265000-IT & Telecommunications,PZ501-MoJ ICT Feeder,STERIA LTD,1083881,"88,010.67",Steria ICT Network Services (VAT Rec) FY12/13 (Schedule)
Ministry of Justice,MoJ HQ,01-Oct-12,265000-IT & Telecommunications,PZ501-MoJ ICT Feeder,HFX LTD,1083799,"88,353.68",HFX Support Renewal
Ministry of Justice,MoJ HQ,04-Oct-12,265000-IT & Telecommunications,PZ501-MoJ ICT Feeder,FUJITSU SERVICES LTD,1084007,"88,892.32",FJS Solution Assurance   Managed Service (Schedule)
Ministry of Justice,MoJ HQ,03-Oct-12,532000-Tangible GBV - Additions,PZ501-MoJ ICT Feeder,HOME OFFICE IT,2064,"90,033.36",Consultancy services delivered to the LSC IDP Programme running from 1st April to 12th October 2012
Ministry of Justice,MoJ HQ,04-Oct-12,265000-IT & Telecommunications,PZ501-MoJ ICT Feeder,FUJITSU SERVICES LTD,1084007,"97,871.48",CCN No: 368 - YJB core managed service  01/04/12 - 31/07/12
Ministry of Justice,MoJ HQ,04-Oct-12,265000-IT & Telecommunications,PZ501-MoJ ICT Feeder,HP ENTERPRISE SERVICES UK LTD,1084043,"99,189.31",HP ICT Other (VAT Rec) FY12/13 (Schedule)
Ministry of Justice,MoJ HQ,04-Oct-12,265000-IT & Telecommunications,PZ501-MoJ ICT Feeder,FUJITSU SERVICES LTD,1084007,"101,827.94",FJS Security Management  Managed Service (Schedule)
Ministry of Justice,MoJ HQ,04-Oct-12,512000-Intangible GBV - Additions,PZ501-MoJ ICT Feeder,LOGICA UK LTD,1084071,"103,586.00",L-S-2061-03 - Libra Oracle Upgrade
Ministry of Justice,MoJ HQ,01-Oct-12,265000-IT & Telecommunications,PZ501-MoJ ICT Feeder,HP ENTERPRISE SERVICES UK LTD,1083801,"110,059.26",HP ICT Telephony (NON VAT Rec) FY12/13 (Schedule)
Ministry of Justice,MoJ HQ,29-Oct-12,532000-Tangible GBV - Additions,PZ501-MoJ ICT Feeder,ATOS IT SERVICES UK LTD,1085813,"110,858.00","CCN A-R-03478-03	CREST EL Full Project Delivery - Atos Direct Costs						 						"
Ministry of Justice,MoJ HQ,01-Oct-12,265000-IT & Telecommunications,PZ501-MoJ ICT Feeder,HP ENTERPRISE SERVICES UK LTD,1083801,"112,052.16",HP ICT App Maint & Supp (VAT Rec) FY12/13 (Schedule)
Ministry of Justice,MoJ HQ,04-Oct-12,265000-IT & Telecommunications,PZ501-MoJ ICT Feeder,LOGICA UK LTD,1084071,"114,836.00",ICT Printing (Schedule)
Ministry of Justice,MoJ HQ,04-Oct-12,512000-Intangible GBV - Additions,PZ501-MoJ ICT Feeder,HP ENTERPRISE SERVICES UK LTD,1084043,"116,911.71",PB508 - HP Project Implementation Costs - Replaces PO 10000024857
Ministry of Justice,MoJ HQ,04-Oct-12,265000-IT & Telecommunications,PZ501-MoJ ICT Feeder,FUJITSU SERVICES LTD,1084007,"127,602.34","CCN No: 432 - YJB Connectivity Hosting 01/04/12 - 31/07/13					 					 							"
Ministry of Justice,MoJ HQ,04-Oct-12,265000-IT & Telecommunications,PZ501-MoJ ICT Feeder,HP ENTERPRISE SERVICES UK LTD,1084043,"128,741.21",HP ICT App Maint & Supp (VAT Rec) FY12/13 (Schedule)
Ministry of Justice,MoJ HQ,01-Oct-12,265000-IT & Telecommunications,PZ501-MoJ ICT Feeder,HP ENTERPRISE SERVICES UK LTD,1083801,"135,974.71",HP ICT Telephony (NON VAT Rec) FY12/13 (Schedule)
Ministry of Justice,MoJ HQ,01-Oct-12,265000-IT & Telecommunications,PZ501-MoJ ICT Feeder,ATOS IT SERVICES UK LTD,1083736,"136,673.25",ICT Desktops (Schedule)
Ministry of Justice,MoJ HQ,04-Oct-12,265000-IT & Telecommunications,PZ501-MoJ ICT Feeder,FUJITSU SERVICES LTD,1084007,"146,534.86",FJS Service Management   Managed Service (Schedule)
Ministry of Justice,MoJ HQ,01-Oct-12,265000-IT & Telecommunications,PZ501-MoJ ICT Feeder,ATOS IT SERVICES UK LTD,1083736,"162,496.48",ICT Laptops (Schedule)
Ministry of Justice,MoJ HQ,04-Oct-12,265000-IT & Telecommunications,PZ501-MoJ ICT Feeder,LOGICA UK LTD,1084071,"163,762.02",ICT Other (Schedule)
Ministry of Justice,MoJ HQ,29-Oct-12,512000-Intangible GBV - Additions,PZ501-MoJ ICT Feeder,STERIA LTD,1085990,"164,517.96",Lotus Notes (RFS 97044) (Schedule)
Ministry of Justice,MoJ HQ,29-Oct-12,532000-Tangible GBV - Additions,PZ501-MoJ ICT Feeder,STERIA LTD,1085990,"169,788.33",PQ108 - OMNI-T Capital Expenditure FY1112
Ministry of Justice,MoJ HQ,29-Oct-12,265000-IT & Telecommunications,PZ501-MoJ ICT Feeder,STERIA LTD,1085990,"170,499.29",Steria ICT Telephony (NON VAT Rec) FY12/13 (Schedule)
Ministry of Justice,MoJ HQ,04-Oct-12,512000-Intangible GBV - Additions,PZ501-MoJ ICT Feeder,HP ENTERPRISE SERVICES UK LTD,1084043,"181,352.97",PB508 - HP Project Implementation Costs - Replaces PO 10000024857
Ministry of Justice,MoJ HQ,04-Oct-12,265000-IT & Telecommunications,PZ501-MoJ ICT Feeder,FUJITSU SERVICES LTD,1084007,"186,009.44",FJS Operations - Production Environment   Managed Service (Schedule)
Ministry of Justice,MoJ HQ,22-Oct-12,265000-IT & Telecommunications,PZ501-MoJ ICT Feeder,CAPITA SECURE INFORMATION SYSTEMS,1085352,"190,788.00",Oasys Support 2012-2013
Ministry of Justice,MoJ HQ,01-Oct-12,265000-IT & Telecommunications,PZ501-MoJ ICT Feeder,CABLE & WIRELESS WORLDWIDE,1083757,"202,935.77",SM-SMXi CJS Secure E-mail Managed Service (Schedule)
Ministry of Justice,MoJ HQ,18-Oct-12,265000-IT & Telecommunications,PZ501-MoJ ICT Feeder,ATOS IT SERVICES UK LTD,1085031,"220,000.00",CCN2277-01 - NOP Main CCN
Ministry of Justice,MoJ HQ,29-Oct-12,265000-IT & Telecommunications,PZ501-MoJ ICT Feeder,STERIA LTD,1085990,"228,004.06",Steria ICT App Maint & Supp (VAT Rec) FY12/13 (Schedule)
Ministry of Justice,MoJ HQ,25-Oct-12,265000-IT & Telecommunications,PZ501-MoJ ICT Feeder,DETICA LTD,1085611,"241,965.63",This PO is for the services of the IA Managed Service. For the period April-October 2012.   It relates to Re-chargeable costs (Schedule)
Ministry of Justice,MoJ HQ,18-Oct-12,512000-Intangible GBV - Additions,PZ501-MoJ ICT Feeder,LOGICA UK LTD,1085193,"289,167.00","CCN (fixed price) - L-R-3047-02 Data Retention and Disposal HMCTS174 Libra DRD"" One Off charge						 							"
Ministry of Justice,MoJ HQ,04-Oct-12,265000-IT & Telecommunications,PZ501-MoJ ICT Feeder,ACTICA CONSULTING LTD,1083920,"289,777.12",This PO is for the services of the Architecture Managed Service. For the period April-October 2012.  It relates to rechargeable costs (Schedule)
Ministry of Justice,MoJ HQ,01-Oct-12,265000-IT & Telecommunications,PZ501-MoJ ICT Feeder,ATOS IT SERVICES UK LTD,1083736,"295,595.24",ICT Laptops (Schedule)
Ministry of Justice,MoJ HQ,01-Oct-12,265000-IT & Telecommunications,PZ501-MoJ ICT Feeder,HP ENTERPRISE SERVICES UK LTD,1083801,"312,999.45",HP ICT Telephony (NON VAT Rec) FY12/13 (Schedule)
Ministry of Justice,MoJ HQ,01-Oct-12,265000-IT & Telecommunications,PZ501-MoJ ICT Feeder,ATOS IT SERVICES UK LTD,1083736,"335,370.00",ICT Service Desk (Schedule)
Ministry of Justice,MoJ HQ,22-Oct-12,512000-Intangible GBV - Additions,PZ501-MoJ ICT Feeder,STERIA LTD,1085498,"360,000.00","CCN 15 (Quantum)-	PMIL101a Completion of Application UAT as defined within user acceptance test strategy. Initial Payment will be 360,000						"
Ministry of Justice,MoJ HQ,01-Oct-12,265000-IT & Telecommunications,PZ501-MoJ ICT Feeder,HP ENTERPRISE SERVICES UK LTD,1083801,"368,247.20",HP ICT App Maint & Supp (VAT Rec) FY12/13 (Schedule)
Ministry of Justice,MoJ HQ,04-Oct-12,265000-IT & Telecommunications,PZ501-MoJ ICT Feeder,LOGICA UK LTD,1084071,"402,178.00",ICT Hosting (Schedule)
Ministry of Justice,MoJ HQ,29-Oct-12,265000-IT & Telecommunications,PZ501-MoJ ICT Feeder,STERIA LTD,1085990,"509,992.47",Steria ICT Hosting (VAT Rec) FY12/13 (Schedule)
Ministry of Justice,MoJ HQ,01-Oct-12,265000-IT & Telecommunications,PZ501-MoJ ICT Feeder,ATOS IT SERVICES UK LTD,1083736,"663,605.45",ICT Desktops (Schedule)
Ministry of Justice,MoJ HQ,22-Oct-12,512000-Intangible GBV - Additions,PZ501-MoJ ICT Feeder,STERIA LTD,1085498,"848,000.00","CCN 15 (Quantum)-	PMIL103a ICMS Migration Tool (Business logic & SIT completed) Initial payment 565,000						 NOTE: Re ITEMS LISTED ABOVE ~  this MOJ purchase order supercedes NOMS/HMPS PO 2167626						"
Ministry of Justice,MoJ HQ,29-Oct-12,265000-IT & Telecommunications,PZ501-MoJ ICT Feeder,STERIA LTD,1085990,"892,326.14",Steria ICT Network Services (VAT Rec) FY12/13 (Schedule)
Ministry of Justice,MoJ HQ,01-Oct-12,265000-IT & Telecommunications,PZ501-MoJ ICT Feeder,HP ENTERPRISE SERVICES UK LTD,1083801,"892,919.00",HP ICT App Maint & Supp (VAT Rec) FY12/13 (Schedule)
Ministry of Justice,MoJ HQ,01-Oct-12,265000-IT & Telecommunications,PZ501-MoJ ICT Feeder,HP ENTERPRISE SERVICES UK LTD,1083801,"932,940.89",HP ICT Network Services (VAT Rec) FY12/13 (Schedule)
Ministry of Justice,MoJ HQ,01-Oct-12,265000-IT & Telecommunications,PZ501-MoJ ICT Feeder,ATOS IT SERVICES UK LTD,1083736,"1,273,788.44",ICT Network Services (Schedule)
Ministry of Justice,MoJ HQ,08-Oct-12,512000-Intangible GBV - Additions,PZ501-MoJ ICT Feeder,ORACLE CORPORATION UK LTD,1084380,"1,427,010.06","Oracle Programs Licence Fees as per Ordering document dated 11/7/12: Processor Perpetual x 48 for Partitioning, Real application clusters, Diagnostics pack, Tuning pack, Database lifecycle management pack, Oracle database enterprise edition"
Ministry of Justice,MoJ HQ,29-Oct-12,265000-IT & Telecommunications,PZ501-MoJ ICT Feeder,STERIA LTD,1085990,"1,470,549.40",Steria ICT Desktops (VAT Rec) FY12/13 (Schedule)
Ministry of Justice,MoJ HQ,25-Oct-12,265000-IT & Telecommunications,PZ501-MoJ ICT Feeder,ATOS IT SERVICES UK LTD,1085552,"1,691,421.32",ICT Hosting (Schedule)
Ministry of Justice,MoJ HQ,22-Oct-12,265000-IT & Telecommunications,PZ501-MoJ ICT Feeder,HP ENTERPRISE SERVICES UK LTD,1085406,"2,431,068.89",HP ICT Desktops (VAT Rec) FY12/13 (Schedule)
Ministry of Justice,MoJ HQ,04-Oct-12,265000-IT & Telecommunications,PZ501-MoJ ICT Feeder,LOGICA UK LTD,1084071,"2,552,899.53",ICT App Maint & Supp (Schedule)
Ministry of Justice,MoJ HQ,04-Oct-12,265000-IT & Telecommunications,QY200-OU10 Billback,VODAFONE CORPORATE LTD,1084172,"28,407.39",MoJ HQ Vodafone Mobiles - Account 602451432 - FY 12-13
Ministry of Justice,MoJ HQ,18-Oct-12,222003-CIS Labour TFM Estates,QY200-OU10 Billback,MITIE JUSTICE LTD,1085207,"31,327.00",TFM Soft Services Fixed Costs April 2012 to March 2013 MOJ HQ MITIE INTERNAL MOVES
Ministry of Justice,MoJ HQ,26-Oct-12,263000-Other Contracted Out Services,NX900-MOJ Shared Services,CABINET OFFICE,2171,"31,500.00",Pension Administration Charge 
Ministry of Justice,MoJ HQ,15-Oct-12,265000-IT & Telecommunications,NX900-MOJ Shared Services,STERIA LTD,1084969,"38,076.71",CCN008 Report writer
Ministry of Justice,MoJ HQ,08-Oct-12,223000-Other Expenditure,QY300-Fleet Car Mgmt,LEX AUTOLEASE LTD,1084347,"45,185.24",MoJ Lease Car charges FY 12-13
Ministry of Justice,MoJ HQ,15-Oct-12,262000-SCA Costs,NX900-MOJ Shared Services,LIBERATA UK LTD,1084894,"62,787.50",ARAMIS Charges for 2012-13 ; to be reconciled and agreed Monthly
Ministry of Justice,MoJ HQ,18-Oct-12,222003-CIS Labour TFM Estates,QY200-OU10 Billback,MITIE JUSTICE LTD,1085207,"136,762.33",TFM Soft Services Fixed Costs April 2012 to March 2013 MOJ HQ MITIE SECURITY
Ministry of Justice,MoJ HQ,26-Oct-12,263000-Other Contracted Out Services,NX900-MOJ Shared Services,CABINET OFFICE,2171,"157,500.00",Pension Administration Charge
Ministry of Justice,MoJ HQ,15-Oct-12,265000-IT & Telecommunications,NX900-MOJ Shared Services,STERIA LTD,1084969,"190,383.57", Steria OBIEE report writer resource to support the project until internal resource is mobilised.   The resource will be required for a minimum of 3 months and a maximum of 12 months 
Ministry of Justice,MoJ HQ,04-Oct-12,265000-IT & Telecommunications,NX900-MOJ Shared Services,STERIA LTD,1084149,"226,397.25",CR-0139 - This is a continuation of the e-studio's provision built in BAFO and CR-012. These provisions have now expired so extension required due to service delivery gaps outside steria's direct responsibility.
Ministry of Justice,MoJ HQ,08-Oct-12,262000-SCA Costs,NX900-MOJ Shared Services,LIBERATA UK LTD,1084349,"295,964.38",Monthly Payroll Service charges for financial year 2012/13 (This replaces PO10000023349)
Ministry of Justice,MoJ HQ,15-Oct-12,262000-SCA Costs,QZ600-CPG Other,LIBERATA UK LTD,1084893,"677,040.00",'FSMO 216c-Managed Accounting Service - FSMO 216C- Fixed Monthly Fee - Sep-12
Ministry of Justice,MoJ HQ,15-Oct-12,262000-SCA Costs,NX900-MOJ Shared Services,LIBERATA UK LTD,1084894,"1,216,951.98",ARAMIS Charges for 2012-13 ; to be reconciled and agreed Monthly
Ministry of Justice,MoJ HQ,08-Oct-12,246000-Current Grants,QZ600-CPG Other,UK SUPREME COURT,2093,"1,313,280.00","Quarterly Funding Contribution for UK Supreme Court FY12/13- Funding Contribution for UKSC Qtr1, Funding Contribution for UKSC Qtr2,Funding Contribution for UKSC Qtr3 & Funding Contribution for UKSC Qtr4."
Ministry of Justice,MoJ HQ,26-Oct-12,611000-Debtors <1 year - Other Debtors,WW000-Balance Sheet,NPOWER,1085805,"30,013.11",Invoice Overpayment / Accounting Adjustment
Ministry of Justice,MoJ HQ,23-Oct-12,610400-Debtors <1 year - Prepayments & Accrued Income,WW000-Balance Sheet,LONDON BOROUGH OF CAMDEN,1085531,"73,612.00",Rates Invoice / Accounting Adjustment
Ministry of Justice,MoJ HQ,23-Oct-12,610400-Debtors <1 year - Prepayments & Accrued Income,WW000-Balance Sheet,CITY OF WESTMINSTER,1085529,"81,738.00",Rates Invoice / Accounting Adjustment
Ministry of Justice,MoJ HQ,23-Oct-12,610400-Debtors <1 year - Prepayments & Accrued Income,WW000-Balance Sheet,CITY OF WESTMINSTER,1085529,"85,361.99",Rates Invoice / Accounting Adjustment
Ministry of Justice,MoJ HQ,23-Oct-12,610400-Debtors <1 year - Prepayments & Accrued Income,WW000-Balance Sheet,CITY OF WESTMINSTER,1085529,"140,651.73",Rates Invoice / Accounting Adjustment
Ministry of Justice,MoJ HQ,18-Oct-12,710600-Creditor < 1 year - Payable to Consolidated Fund,WW000-Balance Sheet,HM TREASURY - CFER PAYOVER,2141,"493,014.85",Surrender of Consolidated Fund Extra Receipts and Fine Income to HM Treasury
Ministry of Justice,MoJ HQ,23-Oct-12,610400-Debtors <1 year - Prepayments & Accrued Income,WW000-Balance Sheet,CITY OF WESTMINSTER,1085529,"574,078.00",Rates Invoice / Accounting Adjustment
Ministry of Justice,MoJ HQ,12-Oct-12,710200-Creditors < 1 year - Trade & Other Creditors,WW000-Balance Sheet,NATIONAL OFFENDERS MANAGEMENT SERVICE (NOMS),2111,"1,533,102.15",Government Procurement Card Management
Ministry of Justice,MoJ HQ,25-Oct-12,311100-Legal Aid,KY300-Legal Services Strategy,LEGAL SERVICES COMMISSION (LSC),2169,"11,500,000.00",Grants to Legal Services Commission in respect of CLS & Criminal Legal Aid
Ministry of Justice,MoJ HQ,18-Oct-12,710600-Creditor < 1 year - Payable to Consolidated Fund,WW000-Balance Sheet,HM TREASURY - CFER PAYOVER,2142,"11,513,527.07",Surrender of Consolidated Fund Extra Receipts and Fine Income to HM Treasury
Ministry of Justice,MoJ HQ,18-Oct-12,311100-Legal Aid,KY300-Legal Services Strategy,LEGAL SERVICES COMMISSION (LSC),6608,"12,964,000.00",Grants to Legal Services Commission in respect of CLS & Criminal Legal Aid
Ministry of Justice,MoJ HQ,11-Oct-12,311100-Legal Aid,KY300-Legal Services Strategy,LEGAL SERVICES COMMISSION (LSC),6603,"14,049,000.00",Grants to Legal Services Commission in respect of CLS & Criminal Legal Aid
Ministry of Justice,MoJ HQ,18-Oct-12,311100-Legal Aid,KY300-Legal Services Strategy,LEGAL SERVICES COMMISSION (LSC),6608,"15,336,000.00",Grants to Legal Services Commission in respect of CLS & Criminal Legal Aid
Ministry of Justice,MoJ HQ,11-Oct-12,311100-Legal Aid,KY300-Legal Services Strategy,LEGAL SERVICES COMMISSION (LSC),6603,"15,551,000.00",Grants to Legal Services Commission in respect of CLS & Criminal Legal Aid
Ministry of Justice,MoJ HQ,25-Oct-12,311100-Legal Aid,KY300-Legal Services Strategy,LEGAL SERVICES COMMISSION (LSC),2169,"20,000,000.00",Grants to Legal Services Commission in respect of CLS & Criminal Legal Aid
Ministry of Justice,MoJ HQ,04-Oct-12,311100-Legal Aid,KY300-Legal Services Strategy,LEGAL SERVICES COMMISSION (LSC),6597,"32,502,000.00",Grants to Legal Services Commission in respect of CLS & Criminal Legal Aid
Ministry of Justice,MoJ HQ,04-Oct-12,311100-Legal Aid,KY300-Legal Services Strategy,LEGAL SERVICES COMMISSION (LSC),6597,"42,398,000.00",Grants to Legal Services Commission in respect of CLS & Criminal Legal Aid
Ministry of Justice,HMCTS,22-Oct-12,222002-Other Property Costs,AG999-HQ - Estates,DEPARTMENT FOR WORK & PENSIONS (DWP),1683,"44,310.92",
Ministry of Justice,HMCTS,22-Oct-12,222002-Other Property Costs,AG999-HQ - Estates,DEPARTMENT FOR WORK & PENSIONS (DWP),1683,"909,872.70",
Ministry of Justice,HMCTS,23-Oct-12,532000-Tangible GBV - Additions,AG999-HQ - Estates,G4S INTEGRATED SERVICES (UK) LTD,2216165,"99,943.35",Liverpool Judges Lodgings - Replace fire & intruder alarms and CCTV
Ministry of Justice,HMCTS,05-Oct-12,222002-Other Property Costs,AG999-HQ - Estates,RS & SM JAMES,2196763,"28,500.00",Stafford Judges' Lodgings Hirings -Keepers Lodge - Hirings Accomodation 2012/13
Ministry of Justice,HMCTS,30-Oct-12,265000-IT & Telecommunications,AP999-HQ - Strategy & Change,ATOS IT SERVICES UK LTD,2224181,"33,966.00",Service Transition of RPTS from current IT platform to MOJ IT platform A-R-03129-02
Ministry of Justice,HMCTS,30-Oct-12,265000-IT & Telecommunications,AP999-HQ - Strategy & Change,ATOS IT SERVICES UK LTD,2224181,"32,015.00",Service Transition of RPTS from current IT platform to MOJ IT platform A-R-03129-02
Ministry of Justice,HMCTS,23-Oct-12,223000-Other Expenditure,AQ999-HQ - Finance & Governance,HMRC,2216261,"93,147.62",
Ministry of Justice,HMCTS,12-Oct-12,265000-IT & Telecommunications,AT899-HQ - ICT,LOGICA UK LTD,2204597,"79,353.00",L-R-3319-02 On boarding RPTS to DISC
Ministry of Justice,HMCTS,16-Oct-12,265000-IT & Telecommunications,AT899-HQ - ICT,LOGICA UK LTD,2207414,"27,535.00",L-R-3445-02 Start of System Testing
Ministry of Justice,HMCTS,19-Oct-12,265000-IT & Telecommunications,AT899-HQ - ICT,LOGICA UK LTD,2213259,"79,404.39",CCN-L-S-2778-03 Time and Materials (T&M) CCN (L-S-2778-03) provides continuation of cover for key resources from 1st April and expires when the maximum charges provisioned under this CCN (L-S-2778-03) run out.
Ministry of Justice,HMCTS,19-Oct-12,265000-IT & Telecommunications,AT899-HQ - ICT,LOGICA UK LTD,2213259,"95,340.94",CCN-L-S-2778-03 Time and Materials (T&M) CCN (L-S-2778-03) provides continuation of cover for key resources from 1st April and expires when the maximum charges provisioned under this CCN (L-S-2778-03) run out.
Ministry of Justice,HMCTS,19-Oct-12,265000-IT & Telecommunications,AT899-HQ - ICT,LOGICA UK LTD,2213259,"117,413.26","CCN-L-S-3043-03 - 	provision of Portfolio Management, Delivery Management, Technical Assurance, Solution Analysis and associated services from 1st April 2012 to 31st December 2012					"
Ministry of Justice,HMCTS,05-Oct-12,265000-IT & Telecommunications,AT899-HQ - ICT,ATOS IT SERVICES UK LTD,2195464,"35,242.84","CCN-3353	Atos programme costs for July 2012						"
Ministry of Justice,HMCTS,05-Oct-12,265000-IT & Telecommunications,AT899-HQ - ICT,ATOS IT SERVICES UK LTD,2195464,"222,454.51","CCN-3353	Atos programme costs for July 2012						"
Ministry of Justice,HMCTS,19-Oct-12,265000-IT & Telecommunications,AT899-HQ - ICT,ATOS IT SERVICES UK LTD,2212899,"64,542.00","CCN 3353 - DSE Resource Aug-Sept CT and AMS						"
Ministry of Justice,HMCTS,30-Oct-12,265000-IT & Telecommunications,AT899-HQ - ICT,ATOS IT SERVICES UK LTD,2224181,"152,222.00",A-R-3319-03-v04 On-boarding the Residential Property Tribunal Service (RPTS) to DISC Transition implementation work
Ministry of Justice,HMCTS,30-Oct-12,265000-IT & Telecommunications,AT899-HQ - ICT,ATOS IT SERVICES UK LTD,2224181,"34,657.00","CCN3353	JJ AT AH TE Resources August-October 2012						 						"
Ministry of Justice,HMCTS,30-Oct-12,265000-IT & Telecommunications,AT899-HQ - ICT,ATOS IT SERVICES UK LTD,2224181,"34,128.00","CCN3353	JJ AT AH TE Resources August-October 2012						 						"
Ministry of Justice,HMCTS,30-Oct-12,265000-IT & Telecommunications,AT899-HQ - ICT,ATOS IT SERVICES UK LTD,2224181,"85,748.00",CT AMS Resources August-October 2012
Ministry of Justice,HMCTS,30-Oct-12,265000-IT & Telecommunications,AT899-HQ - ICT,ATOS IT SERVICES UK LTD,2224181,"52,261.00",CCN-3353 Change and Communications Stream Lead:
Ministry of Justice,HMCTS,30-Oct-12,265000-IT & Telecommunications,AT899-HQ - ICT,ATOS IT SERVICES UK LTD,2224181,"28,963.00",CCN-3353 Customer Care Stream Business Analyst
Ministry of Justice,HMCTS,30-Oct-12,265000-IT & Telecommunications,AT899-HQ - ICT,ATOS IT SERVICES UK LTD,2224181,"45,156.00","CCN3353 - Resources July 2012						"
Ministry of Justice,HMCTS,30-Oct-12,265000-IT & Telecommunications,AT899-HQ - ICT,ATOS IT SERVICES UK LTD,2224181,"76,100.00",CCN-3111-04-v02 Installation of WAN Links into 5 Tribunal Venue Hearing Sites in Scotland - Site Infrastructure Upgrade
Ministry of Justice,HMCTS,16-Oct-12,261000-Fuel and Utilities,BZ999-London Region,EDF ENERGY LTD,2207134,"32,210.02",EDF Energy Ltd - Electricity Costs for RCJ. Strand. Period April 2012 to March 2013. (Account No. 13592343). Business Entity IH701. NAC 222142.
Ministry of Justice,HMCTS,31-Oct-12,222002-Other Property Costs,BZ999-London Region,SANDERSON WEATHERALL,2228180,"47,909.58",
Ministry of Justice,HMCTS,24-Oct-12,265000-IT & Telecommunications,BZ999-London Region,DEPARTMENT FOR COMMUNITIES & LOCAL GOVERNMENT,1692,"50,880.00",Supply of ongoing services for DCLG ICT services - MoJ RPTS use of Link Services beyond 30/06/12
Ministry of Justice,HMCTS,24-Oct-12,265000-IT & Telecommunications,BZ999-London Region,DEPARTMENT FOR COMMUNITIES & LOCAL GOVERNMENT,1693,"50,880.00",Supply of ongoing services for DCLG ICT services - MoJ RPTS use of Link Services beyond 30/06/12
Ministry of Justice,HMCTS,16-Oct-12,222001-Maintenance,BZ999-London Region,CARILLION PLANNED MAINTENANCE,2207011,"29,201.69",CIS Labour - RCJ Rolls Building PAR 2010/195 Supply of Spares for Stock - CPM.
Ministry of Justice,HMCTS,02-Oct-12,222001-Maintenance,BZ999-London Region,SYKES & SON LTD,2191559,"34,783.48","CIS Labour- Snaresbrook Crown - Sykes & Son - Miscellaneous building works 2 inc repair flooring to Crt 10, Redec public corridor to Crt 13, refurb jury rooms A&B,etc, including contingency - PAR 2258 (under term contract)"
Ministry of Justice,HMCTS,02-Oct-12,222001-Maintenance,BZ999-London Region,SYKES & SON LTD,736787,"31,943.50",CIS - Labour - Creation of a Resulters' room - PAR 2281 - SYKES & SON LTD - Redbridge Magistrate Court
Ministry of Justice,HMCTS,23-Oct-12,222001-Maintenance,BZ999-London Region,SYKES & SON LTD,2217611,"57,870.00",CIS Labour - ILFPC - Wells Street - Sykes & Son - Redecoration to various offices throughout the court. Renewal of doors to the lift room - PAR 2250 (under term contract)
Ministry of Justice,HMCTS,24-Oct-12,222001-Maintenance,BZ999-London Region,ROMFORD BUILDING SERVICES LTD,2220450,"46,500.00",CIS Labour - Camberwell Magistrates' - Romford Group Ltd - Quote ref. 34/553. Remediation works in connection with the asbestos risk management works
Ministry of Justice,HMCTS,02-Oct-12,222003-CIS Labour TFM Estates,BZ999-London Region,MITIE JUSTICE LTD,2191103,"63,736.89",CIS Labour - Isleworth Crown - Mitie Justice - 0073-S-WORKS/FM-SW-RFI - PCVL works - Courtroom enabling / booths and power & data works for all
Ministry of Justice,HMCTS,10-Oct-12,222003-CIS Labour TFM Estates,BZ999-London Region,MITIE JUSTICE LTD,2201788,"76,145.60",Security
Ministry of Justice,HMCTS,17-Oct-12,532000-Tangible GBV - Additions,BZ999-London Region,MITIE TECHNICAL FACILITIES MANAGEMENT LTD,2210213,"27,227.87",CIS Labour - Cont. No. 0073-S-WORKS/FM-SW-RFI - Replacement & upgrade of the fire alarm system - PAR L14-01 - MITIE TECHNICAL FACILITIES MANAGEMENT LTD - Croydon Combined Court
Ministry of Justice,HMCTS,17-Oct-12,532000-Tangible GBV - Additions,BZ999-London Region,MITIE TECHNICAL FACILITIES MANAGEMENT LTD,2210212,"27,227.87",CIS Labour - Cont. No. 0073-S-WORKS/FM-SW-RFI - Replacement & upgrade of the fire alarm system - PAR L14-01 - MITIE TECHNICAL FACILITIES MANAGEMENT LTD - Croydon Combined Court
Ministry of Justice,HMCTS,19-Oct-12,222003-CIS Labour TFM Estates,BZ999-London Region,MITIE JUSTICE LTD,2213316,"326,494.82",Cleaning
Ministry of Justice,HMCTS,19-Oct-12,222003-CIS Labour TFM Estates,BZ999-London Region,MITIE JUSTICE LTD,2213316,"34,747.73",Waste Disposal
Ministry of Justice,HMCTS,19-Oct-12,222003-CIS Labour TFM Estates,BZ999-London Region,MITIE JUSTICE LTD,2213316,"573,406.05",Security
Ministry of Justice,HMCTS,16-Oct-12,222003-CIS Labour TFM Estates,BZ999-London Region,MITIE JUSTICE LTD,2207486,"277,165.57",Repair and Maintenance
Ministry of Justice,HMCTS,16-Oct-12,222003-CIS Labour TFM Estates,BZ999-London Region,MITIE JUSTICE LTD,2207486,"29,104.75",Management
Ministry of Justice,HMCTS,16-Oct-12,222003-CIS Labour TFM Estates,BZ999-London Region,MITIE JUSTICE LTD,2207486,"28,985.88",Grounds Maintenance
Ministry of Justice,HMCTS,17-Oct-12,222003-CIS Labour TFM Estates,BZ999-London Region,MITIE JUSTICE LTD,2210211,"91,392.00",Security
Ministry of Justice,HMCTS,30-Oct-12,222003-CIS Labour TFM Estates,BZ999-London Region,MITIE JUSTICE LTD,2224688,"63,736.89",CIS Labour Isleworth Crown Mitie Justice 0073SWORKS/FM-SW-RFI  PCVL works - Courtroom enabling booths and power & data works for all
Ministry of Justice,HMCTS,19-Oct-12,222003-CIS Labour TFM Estates,BZ999-London Region,MITIE JUSTICE LTD,2213316,"36,552.02",CIS Labour - Harrow Crown - Mitie Justice - 0073-S-WORKS/FM-SW-RFI -  PCVL works - Courtroom enabling / booths and power & data works for all
Ministry of Justice,HMCTS,19-Oct-12,532000-Tangible GBV - Additions,BZ999-London Region,MITIE JUSTICE LTD,2213316,"58,249.44","CIS Labour - LED Lighting installation upgrade (PAR 2138) - MITIE JUSTICE LTD - Blackfriars Crown Court 		"
Ministry of Justice,HMCTS,30-Oct-12,222003-CIS Labour TFM Estates,BZ999-London Region,MITIE JUSTICE LTD,2224688,"114,946.26",Internal Repair and Maintenance
Ministry of Justice,HMCTS,02-Oct-12,221000-Property Rent and Rates,BZ999-London Region,CITY OF LONDON,2190693,"214,306.25",
Ministry of Justice,HMCTS,12-Oct-12,532000-Tangible GBV - Additions,BZ999-London Region,WATES CONSTRUCTION LTD,2205285,"335,385.56",Highbury MC - Wates Construction Ltd - Creation of additional court rooms at Highbury MC
Ministry of Justice,HMCTS,12-Oct-12,532000-Tangible GBV - Additions,BZ999-London Region,WATES CONSTRUCTION LTD,2205285,"71,303.62",Enfield MC - Wates Construction Ltd - Conversion of office space at Tottenham MC
Ministry of Justice,HMCTS,12-Oct-12,222001-Maintenance,BZ999-London Region,WILSON JAMES LTD,2205312,"79,689.18",CIS Labour - Royal Courts of Justice - Wilson James Ltd - Carry out Refurbishment/alteration works to Thomas More building floors 1-8 as part of the Restack.
Ministry of Justice,HMCTS,23-Oct-12,226000-Court Costs,BZ999-London Region,EUREST SERVICES,2216125,"33,369.55",London Region - Eurest Smart Cards - Consolidated Juror Smartcards for 3 months
Ministry of Justice,HMCTS,23-Oct-12,226000-Court Costs,BZ999-London Region,EUREST SERVICES,2216125,"48,968.67",London Region - Eurest Smart Cards - Consolidated Juror Smartcards for 3 months
Ministry of Justice,HMCTS,23-Oct-12,226000-Court Costs,BZ999-London Region,EUREST SERVICES,2216125,"53,177.24",London Region - Eurest Smart Cards - Consolidated Juror Smartcards for 3 months
Ministry of Justice,HMCTS,23-Oct-12,223001-Printing Postage and Office expenditure,BZ999-London Region,XEROX FINANCE LTD,2217742,"53,680.57",London Region Consolidated - Rental - Xerox - 12/13
Ministry of Justice,HMCTS,30-Oct-12,261000-Fuel and Utilities,BZ999-London Region,THAMES WATER UTILITIES LTD,2225106,"48,655.40",HMCS Consolidated - Water Costs - Thames Water 2011/12
Ministry of Justice,HMCTS,17-Oct-12,221000-Property Rent and Rates,BZ999-London Region,OFFICE OF FAIR TRADING,1674,"150,264.00",
Ministry of Justice,HMCTS,17-Oct-12,221000-Property Rent and Rates,BZ999-London Region,OFFICE OF FAIR TRADING,1674,"46,864.00",
Ministry of Justice,HMCTS,17-Oct-12,222002-Other Property Costs,BZ999-London Region,OFFICE OF FAIR TRADING,1674,"52,700.00",
Ministry of Justice,HMCTS,23-Oct-12,610400-Debtors <1 year - Prepayments & Accrued Income,BZ999-London Region,ROYAL BOROUGH OF KINGSTON UPON THAMES,2215812,"92,254.00",
Ministry of Justice,HMCTS,23-Oct-12,610400-Debtors <1 year - Prepayments & Accrued Income,BZ999-London Region,CITY OF LONDON,2215670,"35,909.00",
Ministry of Justice,HMCTS,23-Oct-12,610400-Debtors <1 year - Prepayments & Accrued Income,BZ999-London Region,CITY OF LONDON,2215670,"315,228.00",
Ministry of Justice,HMCTS,23-Oct-12,610400-Debtors <1 year - Prepayments & Accrued Income,BZ999-London Region,LONDON BOROUGH OF ISLINGTON,2215758,"52,102.00",
Ministry of Justice,HMCTS,23-Oct-12,610400-Debtors <1 year - Prepayments & Accrued Income,BZ999-London Region,LONDON BOROUGH OF HAMMERSMITH & FULHAM,2215752,"41,564.05",
Ministry of Justice,HMCTS,23-Oct-12,610400-Debtors <1 year - Prepayments & Accrued Income,BZ999-London Region,LONDON BOROUGH OF BRENT,2215745,"37,762.00",
Ministry of Justice,HMCTS,23-Oct-12,610400-Debtors <1 year - Prepayments & Accrued Income,BZ999-London Region,LONDON BOROUGH OF REDBRIDGE,2215762,"47,083.00",
Ministry of Justice,HMCTS,23-Oct-12,610400-Debtors <1 year - Prepayments & Accrued Income,BZ999-London Region,CITY OF WESTMINSTER,2215672,"317,870.00",
Ministry of Justice,HMCTS,23-Oct-12,610400-Debtors <1 year - Prepayments & Accrued Income,BZ999-London Region,CITY OF WESTMINSTER,2215672,"65,915.00",
Ministry of Justice,HMCTS,23-Oct-12,610400-Debtors <1 year - Prepayments & Accrued Income,BZ999-London Region,CITY OF WESTMINSTER,2215672,"34,894.00"
Ministry of Justice,HMCTS,23-Oct-12,610400-Debtors <1 year - Prepayments & Accrued Income,BZ999-London Region,CITY OF WESTMINSTER,2215672,"39,674.00"
Ministry of Justice,HMCTS,23-Oct-12,610400-Debtors <1 year - Prepayments & Accrued Income,BZ999-London Region,CITY OF WESTMINSTER,2215672,"70,266.00"
Ministry of Justice,HMCTS,23-Oct-12,610400-Debtors <1 year - Prepayments & Accrued Income,BZ999-London Region,LONDON BOROUGH OF CROYDON,2215748,"72,178.00"
Ministry of Justice,HMCTS,23-Oct-12,610400-Debtors <1 year - Prepayments & Accrued Income,BZ999-London Region,LONDON BOROUGH OF NEWHAM,2215761,"33,460.00"
Ministry of Justice,HMCTS,23-Oct-12,610400-Debtors <1 year - Prepayments & Accrued Income,BZ999-London Region,LONDON BOROUGH OF CROYDON,2215748,"31,787.00"
Ministry of Justice,HMCTS,23-Oct-12,610400-Debtors <1 year - Prepayments & Accrued Income,BZ999-London Region,LONDON BOROUGH OF SOUTHWARK,2215764,"46,366.00"
Ministry of Justice,HMCTS,23-Oct-12,610400-Debtors <1 year - Prepayments & Accrued Income,BZ999-London Region,LONDON BOROUGH OF SOUTHWARK,2215764,"109,940.00"
Ministry of Justice,HMCTS,23-Oct-12,610400-Debtors <1 year - Prepayments & Accrued Income,BZ999-London Region,LONDON BOROUGH OF SOUTHWARK,2215764,"88,907.99"
Ministry of Justice,HMCTS,23-Oct-12,610400-Debtors <1 year - Prepayments & Accrued Income,BZ999-London Region,LONDON BOROUGH OF SOUTHWARK,2215764,"33,221.00"
Ministry of Justice,HMCTS,23-Oct-12,610400-Debtors <1 year - Prepayments & Accrued Income,BZ999-London Region,LONDON BOROUGH OF TOWER HAMLETS,2215765,"44,215.00"
Ministry of Justice,HMCTS,23-Oct-12,610400-Debtors <1 year - Prepayments & Accrued Income,BZ999-London Region,LONDON BOROUGH OF CAMDEN,2215747,"162,520.00"
Ministry of Justice,HMCTS,23-Oct-12,610400-Debtors <1 year - Prepayments & Accrued Income,BZ999-London Region,LONDON BOROUGH OF BROMLEY,2215746,"32,026.00"
Ministry of Justice,HMCTS,23-Oct-12,610400-Debtors <1 year - Prepayments & Accrued Income,BZ999-London Region,LONDON BOROUGH OF HARINGEY,2215753,"56,882.00"
Ministry of Justice,HMCTS,23-Oct-12,610400-Debtors <1 year - Prepayments & Accrued Income,BZ999-London Region,LONDON BOROUGH OF GREENWICH,2215751,"77,436.00"
Ministry of Justice,HMCTS,23-Oct-12,610400-Debtors <1 year - Prepayments & Accrued Income,BZ999-London Region,LONDON BOROUGH OF HARROW,2215754,"48,995.00"
Ministry of Justice,HMCTS,23-Oct-12,610400-Debtors <1 year - Prepayments & Accrued Income,BZ999-London Region,LONDON BOROUGH OF HOUNSLOW,2215757,"62,140.00",
Ministry of Justice,HMCTS,03-Oct-12,223001-Printing Postage and Office expenditure,CZ999-South East Region,ROYAL MAIL GROUP PLC,2194298,"37,025.47",SE Regional Mail variable charges - Royal Mail - Account number 166289000
Ministry of Justice,HMCTS,23-Oct-12,261000-Fuel and Utilities,CZ999-South East Region,CORONA ENERGY,2216046,"59,886.83",South East Region - Corona  Gas  supply- Consolidated 11/12
Ministry of Justice,HMCTS,19-Oct-12,610400-Debtors <1 year - Prepayments & Accrued Income,CZ999-South East Region,HERTFORDSHIRE COUNTY COUNCIL,2213170,"34,910.84",
Ministry of Justice,HMCTS,19-Oct-12,222001-Maintenance,CZ999-South East Region,PROCARE BUILDING SERVICES,2214255,"34,104.65","CIS Labour - Hastings Magistrates - Procare - Refurbishment and reconstruction of frost damaged main court house front steps, including all latest DDA modifications"
Ministry of Justice,HMCTS,12-Oct-12,222003-CIS Labour TFM Estates,CZ999-South East Region,MITIE JUSTICE LTD,2204656,"156,703.92",Cleaning
Ministry of Justice,HMCTS,12-Oct-12,222003-CIS Labour TFM Estates,CZ999-South East Region,MITIE JUSTICE LTD,2204656,"71,683.69",Waste Disposal
Ministry of Justice,HMCTS,12-Oct-12,222003-CIS Labour TFM Estates,CZ999-South East Region,MITIE JUSTICE LTD,2204656,"389,884.96",Security
Ministry of Justice,HMCTS,16-Oct-12,222003-CIS Labour TFM Estates,CZ999-South East Region,MITIE JUSTICE LTD,2207486,"158,373.42","Repair and Maintenance 	"
Ministry of Justice,HMCTS,17-Oct-12,222003-CIS Labour TFM Estates,CZ999-South East Region,MITIE JUSTICE LTD,2210211,"37,155.75",Security
Ministry of Justice,HMCTS,17-Oct-12,222003-CIS Labour TFM Estates,CZ999-South East Region,MITIE JUSTICE LTD,2210211,"104,986.93",Internal Repair and Maintenance
Ministry of Justice,HMCTS,24-Oct-12,222001-Maintenance,CZ999-South East Region,MITIE JUSTICE LTD,2219369,"38,974.53",CIS Labour -  -St Albans crown Court - Mitie Justice LTD - To repair and replace tiling in various rooms throughout the Court
Ministry of Justice,HMCTS,23-Oct-12,226000-Court Costs,CZ999-South East Region,EUREST SERVICES,2216125,"26,051.48",South East Region - Eurest Smart Cards - Consolidated Juror Smartcards 2012/13  - recharge cards for juror daily food allowance
Ministry of Justice,HMCTS,23-Oct-12,223001-Printing Postage and Office expenditure,CZ999-South East Region,XEROX FINANCE LTD,2217742,"28,254.65",HMCTS SOUTHEAST REGION CONSOLIDATED - Xerox (UK) Ltd - Rental 2012/13
Ministry of Justice,HMCTS,10-Oct-12,532000-Tangible GBV - Additions,CZ999-South East Region,GALLIFORD TRY CONSTRUCTION LTD CENTRAL,2201680,"31,314.86",CIS Labour - Chelmsford & Colchester Project - Galliford Try Construction - Construction Works
Ministry of Justice,HMCTS,09-Oct-12,262000-SCA Costs,CZ999-South East Region,MODERN COURTS (EAST ANGLIA) LTD,2199135,"370,383.05",Ipswich & Cambridge-Modern Courts (East Anglia Ltd BR8 7AG)-Unitary Charges for East Anglia PFI - Monthly
Ministry of Justice,HMCTS,09-Oct-12,262000-SCA Costs,CZ999-South East Region,MODERN COURTS (EAST ANGLIA) LTD,2199135,"60,227.00",Ipswich & Cambridge-Modern Courts (East Anglia Ltd BR8 7AG)-Unitary Charges for East Anglia PFI - Monthly
Ministry of Justice,HMCTS,31-Oct-12,261000-Fuel and Utilities,CZ999-South East Region,BRITISH GAS BUSINESS,2226964,"36,378.42",SE Region Consolidated Invoice - British Gas - Electricity supply - 11/12
Ministry of Justice,HMCTS,31-Oct-12,261000-Fuel and Utilities,CZ999-South East Region,BRITISH GAS BUSINESS,2226964,"25,269.02",SE Region Consolidated Invoice - British Gas - Electricity supply - 11/12
Ministry of Justice,HMCTS,23-Oct-12,610400-Debtors <1 year - Prepayments & Accrued Income,CZ999-South East Region,LUTON BOROUGH COUNCIL,2215767,"33,434.00",
Ministry of Justice,HMCTS,23-Oct-12,610400-Debtors <1 year - Prepayments & Accrued Income,CZ999-South East Region,BASILDON DISTRICT COUNCIL,2215623,"35,266.00",
Ministry of Justice,HMCTS,23-Oct-12,610400-Debtors <1 year - Prepayments & Accrued Income,CZ999-South East Region,CANTERBURY CITY COUNCIL,2215653,"38,701.00",
Ministry of Justice,HMCTS,23-Oct-12,610400-Debtors <1 year - Prepayments & Accrued Income,CZ999-South East Region,MAIDSTONE BOROUGH COUNCIL,2215768,"60,914.00",
Ministry of Justice,HMCTS,23-Oct-12,610400-Debtors <1 year - Prepayments & Accrued Income,CZ999-South East Region,CAMBRIDGE CITY COUNCIL,2215651,"25,648.00",
Ministry of Justice,HMCTS,23-Oct-12,610400-Debtors <1 year - Prepayments & Accrued Income,CZ999-South East Region,READING BOROUGH COUNCIL,2215805,"47,632.00",
Ministry of Justice,HMCTS,23-Oct-12,610400-Debtors <1 year - Prepayments & Accrued Income,CZ999-South East Region,COLCHESTER BOROUGH COUNCIL,2215674,"37,111.00",
Ministry of Justice,HMCTS,23-Oct-12,610400-Debtors <1 year - Prepayments & Accrued Income,CZ999-South East Region,CHELMSFORD BOROUGH COUNCIL,2215659,"31,831.00",
Ministry of Justice,HMCTS,23-Oct-12,610400-Debtors <1 year - Prepayments & Accrued Income,CZ999-South East Region,CHELMSFORD BOROUGH COUNCIL,2215659,"28,167.00",
Ministry of Justice,HMCTS,23-Oct-12,610400-Debtors <1 year - Prepayments & Accrued Income,CZ999-South East Region,CHELMSFORD BOROUGH COUNCIL,2215659,"25,877.00",
Ministry of Justice,HMCTS,23-Oct-12,610400-Debtors <1 year - Prepayments & Accrued Income,CZ999-South East Region,ST ALBANS CITY & DISTRICT COUNCIL,2215842,"34,350.00",
Ministry of Justice,HMCTS,23-Oct-12,610400-Debtors <1 year - Prepayments & Accrued Income,CZ999-South East Region,OXFORD CITY COUNCIL,2215797,"28,396.00",
Ministry of Justice,HMCTS,23-Oct-12,610400-Debtors <1 year - Prepayments & Accrued Income,CZ999-South East Region,NORWICH CITY COUNCIL,2215793,"30,228.00",
Ministry of Justice,HMCTS,19-Oct-12,261000-Fuel and Utilities,DZ999-South West Region,CORONA ENERGY,2213019,"34,448.22",SW Finance Office (DA170) - Corona Energy - GAS 222143 - Acct no.:20301400 - Monthly Consolidated Bill for various sites in the SW Region.
Ministry of Justice,HMCTS,30-Oct-12,532000-Tangible GBV - Additions,DZ999-South West Region,SOUTHERN ELECTRIC CONTRACTING LTD,2225065,"31,576.97",CIS LABOUR - MW - MOJ 11/12 (29) Cheltenham MC - Cells
Ministry of Justice,HMCTS,16-Oct-12,223001-Printing Postage and Office expenditure,DZ999-South West Region,XEROX (UK) LTD,2208092,"58,080.61",SW Finance Office Consolidated invoice for  copier charges for SSCSA Tribunals Jan to March 12
Ministry of Justice,HMCTS,19-Oct-12,610400-Debtors <1 year - Prepayments & Accrued Income,DZ999-South West Region,GLOUCESTERSHIRE COUNTY COUNCIL,2213120,"29,568.46",
Ministry of Justice,HMCTS,09-Oct-12,262000-SCA Costs,DZ999-South West Region,ENTERPRISE CIVIC BUILDINGS LIMITED,2198829,"262,316.07",Exeter - Enterprise Civic Buildings Ltd (GU9 7PT) - Unitary Charges for Exeter PFI-Monthly
Ministry of Justice,HMCTS,16-Oct-12,610400-Debtors <1 year - Prepayments & Accrued Income,DZ999-South West Region,GVA GRIMLEY LTD T/A GVA,2207227,"38,885.40",
Ministry of Justice,HMCTS,26-Oct-12,222001-Maintenance,DZ999-South West Region,IAN WILLIAMS LIMITED,2222113,"73,616.62","CIS LABOUR - MW - 2049-2-Works/FM-SW-RFP Internal Alterations to Plymouth Magistrates Court, PTO 12/13 (03)"
Ministry of Justice,HMCTS,30-Oct-12,222001-Maintenance,DZ999-South West Region,IAN WILLIAMS LIMITED,2224535,"73,811.30","CIS LABOUR - MW - 2049-2-Works/FM-SW-RFP Internal Alterations to Plymouth Magistrates Court, PTO 12/13 (03)"
Ministry of Justice,HMCTS,23-Oct-12,222003-CIS Labour TFM Estates,DZ999-South West Region,MITIE JUSTICE LTD,2216441,"100,387.92","CIS Labour - TFM Works Package B, South West Region - Hard Services (Fixed) - M&E Repair & Maintenance"
Ministry of Justice,HMCTS,23-Oct-12,222003-CIS Labour TFM Estates,DZ999-South West Region,MITIE JUSTICE LTD,2216441,"219,998.64","CIS Labour - TFM Works Package B, South West Region - Soft Services (Fixed) - Security"
Ministry of Justice,HMCTS,23-Oct-12,222003-CIS Labour TFM Estates,DZ999-South West Region,MITIE JUSTICE LTD,2216441,"110,541.15","CIS Labour - TFM Works Package B, South West Region - Soft Services (Fixed) - Cleaning"
Ministry of Justice,HMCTS,12-Oct-12,262000-SCA Costs,DZ999-South West Region,SERVICES SUPPORT (AVON & SOMERSET) LTD,2205199,"679,406.80",Worle Area Office Bristol - Services Support(Avon & Somerset Ltd) - Unitary Charges for Worle & Bristol PFI - Monthly
Ministry of Justice,HMCTS,22-Oct-12,610400-Debtors <1 year - Prepayments & Accrued Income,DZ999-South West Region,STANDARD LIFE INVESTMENTS,2215617,"270,417.30",
Ministry of Justice,HMCTS,02-Oct-12,222001-Maintenance,DZ999-South West Region,BRYMOR CONTRACTORS LTD,2190523,"31,222.62","CIS labour - provision of temporary county court accommodation at Basingstoke Magistrates' Court, BCP 10/11 (55)."
Ministry of Justice,HMCTS,24-Oct-12,261000-Fuel and Utilities,DZ999-South West Region,BRITISH GAS BUSINESS,2219167,"47,805.02",South West Regionas Office (DA170) - British Gas - Account no.: 3053490 - Electricity Consumption costs (various sites) 12/13
Ministry of Justice,HMCTS,02-Oct-12,532000-Tangible GBV - Additions,DZ999-South West Region,INTERSERVE CONSTRUCTION LTD,2190957,"45,202.61",CIS Labour - Southampton MC - Interserve Construction Ltd - Tribunals Integration
Ministry of Justice,HMCTS,10-Oct-12,532000-Tangible GBV - Additions,DZ999-South West Region,INTERSERVE CONSTRUCTION LTD,2201726,"48,213.85",CIS Labour-Basingstoke Magistrates'-Interserve Construction Ltd-Construction
Ministry of Justice,HMCTS,02-Oct-12,532000-Tangible GBV - Additions,DZ999-South West Region,INTERSERVE CONSTRUCTION LTD,2190957,"171,435.49",CIS Labour - Southampton MC - Interserve Construction Ltd - Window Replacement and Remedials
Ministry of Justice,HMCTS,05-Oct-12,532000-Tangible GBV - Additions,DZ999-South West Region,INTERSERVE CONSTRUCTION LTD,2195775,"207,544.96",CIS Labour - Southampton MC - Interserve Construction Ltd - Window Replacement and Remedials
Ministry of Justice,HMCTS,23-Oct-12,610400-Debtors <1 year - Prepayments & Accrued Income,DZ999-South West Region,BOURNEMOUTH BOROUGH COUNCIL,2215639,"40,533.00",
Ministry of Justice,HMCTS,23-Oct-12,610400-Debtors <1 year - Prepayments & Accrued Income,DZ999-South West Region,BRISTOL CITY COUNCIL,2215646,"73,280.00",
Ministry of Justice,HMCTS,23-Oct-12,610400-Debtors <1 year - Prepayments & Accrued Income,DZ999-South West Region,BRISTOL CITY COUNCIL,2215646,"50,380.00",
Ministry of Justice,HMCTS,23-Oct-12,610400-Debtors <1 year - Prepayments & Accrued Income,DZ999-South West Region,BRISTOL CITY COUNCIL,2215646,"46,716.00",
Ministry of Justice,HMCTS,23-Oct-12,610400-Debtors <1 year - Prepayments & Accrued Income,DZ999-South West Region,SOUTHAMPTON CITY COUNCIL,2215839,"32,747.00",
Ministry of Justice,HMCTS,23-Oct-12,610400-Debtors <1 year - Prepayments & Accrued Income,DZ999-South West Region,SOUTHAMPTON CITY COUNCIL,2215839,"39,846.00",
Ministry of Justice,HMCTS,23-Oct-12,610400-Debtors <1 year - Prepayments & Accrued Income,DZ999-South West Region,NORTH SOMERSET COUNCIL,2215789,"35,037.00",
Ministry of Justice,HMCTS,23-Oct-12,610400-Debtors <1 year - Prepayments & Accrued Income,DZ999-South West Region,EXETER CITY COUNCIL,2215709,"42,823.00",
Ministry of Justice,HMCTS,23-Oct-12,610400-Debtors <1 year - Prepayments & Accrued Income,DZ999-South West Region,WINCHESTER CITY COUNCIL,2215876,"35,724.00",
Ministry of Justice,HMCTS,23-Oct-12,610400-Debtors <1 year - Prepayments & Accrued Income,DZ999-South West Region,PORTSMOUTH CITY COUNCIL,2215801,"39,846.00",
Ministry of Justice,HMCTS,03-Oct-12,223001-Printing Postage and Office expenditure,EZ999-Wales Region,ROYAL MAIL GROUP PLC,2194298,"34,194.52",HMCS Wales Region: Various Sites: Cust Acc. No. 0151075000:Variable Costs: April 2011 - March 2012: Royal Mail
Ministry of Justice,HMCTS,31-Oct-12,532000-Tangible GBV - Additions,EZ999-Wales Region,KIER CONSTRUCTION,2227115,"98,818.00","CIS Labour - Swansea Mags- KIER CONSTRUCTION - Building works, preliminaries, OH&P and contingency"
Ministry of Justice,HMCTS,31-Oct-12,532000-Tangible GBV - Additions,EZ999-Wales Region,KIER CONSTRUCTION,2227115,"98,817.00","CIS Labour - Swansea Crn St H - KIER CONSTRUCTION - Building works, preliminaries, OH&P and contingency"
Ministry of Justice,HMCTS,24-Oct-12,265000-IT & Telecommunications,EZ999-Wales Region,ATOS IT SERVICES UK LTD,2219144,"39,695.00",A-R- 03056-02-V01 - ABERYSTWYTH LAW COURTS - ATOS - The amalgamation of the 3 locations into one commissioning and decommissioning IT hardware and all associated work to move user profiles.
Ministry of Justice,HMCTS,26-Oct-12,265000-IT & Telecommunications,EZ999-Wales Region,ATOS IT SERVICES UK LTD,2221835,"30,636.00",CCN A-R-03056-01-v04 - Aberystwyth Law Courts - ATOS - IT Setup Costs for Aberystwyth Law Courts
Ministry of Justice,HMCTS,31-Oct-12,532000-Tangible GBV - Additions,EZ999-Wales Region,WATES CONSTRUCTION LTD,2228237,"509,694.00",CIS Labour - Newport Magistrates Court -Wates Construction Ltd - Enabling works / construction
Ministry of Justice,HMCTS,05-Oct-12,532000-Tangible GBV - Additions,EZ999-Wales Region,KNOX & WELLS LTD,2195821,"111,435.00",CIS Labour-Cardiff Magistrates'-Knox & Wells-New training suite works
Ministry of Justice,HMCTS,12-Oct-12,222003-CIS Labour TFM Estates,EZ999-Wales Region,G4S INTEGRATED SERVICES (UK) LTD,2204458,"58,085.13",CLEANING - WALES
Ministry of Justice,HMCTS,12-Oct-12,222003-CIS Labour TFM Estates,EZ999-Wales Region,G4S INTEGRATED SERVICES (UK) LTD,2204458,"133,294.84",SECURITY - WALES
Ministry of Justice,HMCTS,16-Oct-12,222003-CIS Labour TFM Estates,EZ999-Wales Region,G4S INTEGRATED SERVICES (UK) LTD,2207178,"55,477.38",M&E REPAIR AND MAINTENANCE WALES
Ministry of Justice,HMCTS,16-Oct-12,222003-CIS Labour TFM Estates,EZ999-Wales Region,G4S INTEGRATED SERVICES (UK) LTD,2207178,"58,188.38",MANAGEMENT COSTS WALES
Ministry of Justice,HMCTS,16-Oct-12,222003-CIS Labour TFM Estates,EZ999-Wales Region,G4S INTEGRATED SERVICES (UK) LTD,2207178,"59,014.66",CLEANING - WALES
Ministry of Justice,HMCTS,16-Oct-12,222003-CIS Labour TFM Estates,EZ999-Wales Region,G4S INTEGRATED SERVICES (UK) LTD,2207178,"133,291.84",SECURITY - WALES
Ministry of Justice,HMCTS,23-Oct-12,610400-Debtors <1 year - Prepayments & Accrued Income,EZ999-Wales Region,CARDIFF COUNTY COUNCIL,2215654,"35,934.00",
Ministry of Justice,HMCTS,03-Oct-12,223001-Printing Postage and Office expenditure,FZ999-Midlands Region,ROYAL MAIL GROUP PLC,2194298,"70,108.72",Royal Mail variable charges for Midlands Region 2011/12 - (Journal from FA107)
Ministry of Justice,HMCTS,23-Oct-12,261000-Fuel and Utilities,FZ999-Midlands Region,CORONA ENERGY,2216046,"33,440.63",Corona Energy gas HMCTS Midlands 2012/13.
Ministry of Justice,HMCTS,23-Oct-12,261000-Fuel and Utilities,FZ999-Midlands Region,CORONA ENERGY,2216046,"34,087.02",Corona Energy gas HMCTS Midlands 2012/13.
Ministry of Justice,HMCTS,12-Oct-12,532000-Tangible GBV - Additions,FZ999-Midlands Region,SITEC INTERIORS LTD,2205207,"67,410.10",M/Mids/95-11-CIS Labour-Walsall Magistrates'-Sitec Interiors Ltd-New DDA lift installation
Ministry of Justice,HMCTS,30-Oct-12,221000-Property Rent and Rates,FZ999-Midlands Region,OPTIC ASSET MANAGEMENT LTD,2224905,"77,426.25",Quarterly rent for Birmingham ETS
Ministry of Justice,HMCTS,30-Oct-12,222002-Other Property Costs,FZ999-Midlands Region,OPTIC ASSET MANAGEMENT LTD,2224905,"32,252.47",Quarterly service charge for Birmingham ETS
Ministry of Justice,HMCTS,30-Oct-12,262000-SCA Costs,FZ999-Midlands Region,H & W COURTS LIMITED,2224478,"491,614.53",Hereford & Worcester - H&W Courts Ltd (EC2V 7HR) - Unitary Charges for Hereford & Worcester PFI - Monthly
Ministry of Justice,HMCTS,31-Oct-12,262000-SCA Costs,FZ999-Midlands Region,DERBYSHIRE COURTS LTD,2227015,"454,357.63",Derby & Chesterfield - Derbyshire Courts Ltd - (SE1 9RD) - Unitary Charges for Derbyshire PFI - Monthly
Ministry of Justice,HMCTS,16-Oct-12,532000-Tangible GBV - Additions,FZ999-Midlands Region,MITIE TECHNICAL FACILITIES MANAGEMENT LTD,2207487,"54,670.49",CIS Labour-Lincoln County-Mitie Ltd-Supply & Installation of Comfort Cooling (on back of term contract)
Ministry of Justice,HMCTS,03-Oct-12,532000-Tangible GBV - Additions,FZ999-Midlands Region,MITIE TECHNICAL FACILITIES MANAGEMENT LTD,2193426,"37,400.00",CIS Labour - Creation of interview rooms (on back of term contract) - MITIE TECHNICAL FACILITIES MANAGEMENT LTD - Lincoln County Court
Ministry of Justice,HMCTS,02-Oct-12,532000-Tangible GBV - Additions,FZ999-Midlands Region,MITIE TECHNICAL FACILITIES MANAGEMENT LTD,2191104,"30,062.18",CIS Labour-Boston-Mitie-Supply & Installationof Access Control System on back of term contract
Ministry of Justice,HMCTS,02-Oct-12,222001-Maintenance,FZ999-Midlands Region,MITIE TECHNICAL FACILITIES MANAGEMENT LTD,2191104,"27,532.69",CIS Labour - Parcels Office - Redecoration  (under term contract) - MITIE TECHNICAL FACILITIES MANAGEMENT LTD - Nottingham Magistrates Court
Ministry of Justice,HMCTS,30-Oct-12,532000-Tangible GBV - Additions,FZ999-Midlands Region,CABLE & WIRELESS WORLDWIDE,2224265,"34,583.26",Various Midlands Courts- Cable and Wireless- Mac Request 185 Provision of PVL Equipment
Ministry of Justice,HMCTS,09-Oct-12,532000-Tangible GBV - Additions,FZ999-Midlands Region,HENRY BOOT CONSTRUCTION LTD,2198941,"436,991.88",CIS Labour-Newcastle Magistrates'-Henry Boot Contruction Ltd-Instruction of complete integration scheme - Building and M&E Refurbishment Works for agreed maximum price
Ministry of Justice,HMCTS,31-Oct-12,222002-Other Property Costs,FZ999-Midlands Region,DTZ DEBENHAM TIE LEUNG,2227024,"27,959.17",Quarterly service charge for Cambridge AS
Ministry of Justice,HMCTS,23-Oct-12,222001-Maintenance,FZ999-Midlands Region,MITIE TECHNICAL FACILITIES MANAGEMENT LTD,2216442,"127,965.00",CIS Labour - Nottingham Magistrates Court - MITIE - Supply and Installation of calorifiers
Ministry of Justice,HMCTS,30-Oct-12,226000-Court Costs,FZ999-Midlands Region,EUREST SERVICES,2224397,"29,186.03",Midlands Region Catering Jurors Subsidy 11/12 - Eurest Services
Ministry of Justice,HMCTS,23-Oct-12,223001-Printing Postage and Office expenditure,FZ999-Midlands Region,XEROX FINANCE LTD,2217742,"41,481.54",ACCT. 633675. HMCTS MIDLANDS COPIER RENTAL 2012/13.
Ministry of Justice,HMCTS,16-Oct-12,222003-CIS Labour TFM Estates,FZ999-Midlands Region,G4S INTEGRATED SERVICES (UK) LTD,2207179,"163,089.05",Cleaning
Ministry of Justice,HMCTS,16-Oct-12,222003-CIS Labour TFM Estates,FZ999-Midlands Region,G4S INTEGRATED SERVICES (UK) LTD,2207179,"27,576.97",Management Costs etc
Ministry of Justice,HMCTS,16-Oct-12,222003-CIS Labour TFM Estates,FZ999-Midlands Region,G4S INTEGRATED SERVICES (UK) LTD,2207179,"289,416.73",Security
Ministry of Justice,HMCTS,16-Oct-12,222003-CIS Labour TFM Estates,FZ999-Midlands Region,G4S INTEGRATED SERVICES (UK) LTD,2207179,"145,954.18",M&E Repair and Maintenance
Ministry of Justice,HMCTS,16-Oct-12,222003-CIS Labour TFM Estates,FZ999-Midlands Region,G4S INTEGRATED SERVICES (UK) LTD,2207179,"113,736.42",Management Costs etc
Ministry of Justice,HMCTS,16-Oct-12,222003-CIS Labour TFM Estates,FZ999-Midlands Region,G4S INTEGRATED SERVICES (UK) LTD,2207179,"26,136.88",Internal Repair and Maintenance
Ministry of Justice,HMCTS,16-Oct-12,222003-CIS Labour TFM Estates,FZ999-Midlands Region,G4S INTEGRATED SERVICES (UK) LTD,2207179,"25,992.77",CIS Labour  - Various - G4S - RPU SW 09/10/72/11 - M&E Repair and Maintenance
Ministry of Justice,HMCTS,24-Oct-12,261000-Fuel and Utilities,FZ999-Midlands Region,BRITISH GAS BUSINESS,2219167,"25,542.23",BGB electricity for  HMCTS Midlands 2012/13.
Ministry of Justice,HMCTS,02-Oct-12,532000-Tangible GBV - Additions,FZ999-Midlands Region,CABLE & WIRELESS GLOBAL CARD SERVICES,2190657,"61,166.05",Stafford Combined - Cable and Wireless - MAC 159 Provision and Installation of Video Link
Ministry of Justice,HMCTS,23-Oct-12,610400-Debtors <1 year - Prepayments & Accrued Income,FZ999-Midlands Region,NORTHAMPTON BOROUGH COUNCIL,751026,"38,930.00",Rates prepayment
Ministry of Justice,HMCTS,23-Oct-12,610400-Debtors <1 year - Prepayments & Accrued Income,FZ999-Midlands Region,STAFFORD BOROUGH COUNCIL,2215845,"26,106.00",Rates prepayment
Ministry of Justice,HMCTS,23-Oct-12,610400-Debtors <1 year - Prepayments & Accrued Income,FZ999-Midlands Region,CITY OF LINCOLN COUNCIL,2215669,"29,999.00",Rates prepayment
Ministry of Justice,HMCTS,23-Oct-12,610400-Debtors <1 year - Prepayments & Accrued Income,FZ999-Midlands Region,COVENTRY CITY COUNCIL,2215683,"25,190.00",Rates prepayment
Ministry of Justice,HMCTS,23-Oct-12,610400-Debtors <1 year - Prepayments & Accrued Income,FZ999-Midlands Region,COVENTRY CITY COUNCIL,2215683,"30,042.00",Rates prepayment
Ministry of Justice,HMCTS,23-Oct-12,610400-Debtors <1 year - Prepayments & Accrued Income,FZ999-Midlands Region,DERBY CITY COUNCIL,2215692,"28,854.00",Rates prepayment
Ministry of Justice,HMCTS,23-Oct-12,610400-Debtors <1 year - Prepayments & Accrued Income,FZ999-Midlands Region,WOLVERHAMPTON CITY COUNCIL,2215878,"35,724.00",Rates prepayment
Ministry of Justice,HMCTS,23-Oct-12,610400-Debtors <1 year - Prepayments & Accrued Income,FZ999-Midlands Region,CITY OF STOKE ON TRENT,2215671,"32,060.00",Rates prepayment
Ministry of Justice,HMCTS,23-Oct-12,610400-Debtors <1 year - Prepayments & Accrued Income,FZ999-Midlands Region,BIRMINGHAM CITY COUNCIL,2215628,"29,541.00",Rates prepayment
Ministry of Justice,HMCTS,23-Oct-12,610400-Debtors <1 year - Prepayments & Accrued Income,FZ999-Midlands Region,BIRMINGHAM CITY COUNCIL,2215628,"44,655.00",Rates prepayment
Ministry of Justice,HMCTS,23-Oct-12,610400-Debtors <1 year - Prepayments & Accrued Income,FZ999-Midlands Region,BIRMINGHAM CITY COUNCIL,2215628,"149,766.00",Rates prepayment
Ministry of Justice,HMCTS,23-Oct-12,610400-Debtors <1 year - Prepayments & Accrued Income,FZ999-Midlands Region,NOTTINGHAM CITY COUNCIL,2215794,"36,869.00",Rates prepayment
Ministry of Justice,HMCTS,23-Oct-12,610400-Debtors <1 year - Prepayments & Accrued Income,FZ999-Midlands Region,NOTTINGHAM CITY COUNCIL,2215794,"70,990.00",Rates prepayment
Ministry of Justice,HMCTS,23-Oct-12,610400-Debtors <1 year - Prepayments & Accrued Income,FZ999-Midlands Region,LEICESTER CITY COUNCIL,2215740,"32,747.00",Rates prepayment
Ministry of Justice,HMCTS,23-Oct-12,610400-Debtors <1 year - Prepayments & Accrued Income,FZ999-Midlands Region,LEICESTER CITY COUNCIL,2215740,"25,190.00",Rates prepayment
Ministry of Justice,HMCTS,03-Oct-12,223001-Printing Postage and Office expenditure,GZ999-North West Region,ROYAL MAIL GROUP PLC,2194298,"25,903.52",NW Region - Royal Mail variable charges - Jun 12 - Mar 13 - Account 166288000
Ministry of Justice,HMCTS,17-Oct-12,223000-Other Expenditure,GZ999-North West Region,JONATHAN CAREY DESIGN LTD,2210150,"39,487.00",Liverpool City Square - Retiring Room Furniture as per quote: JC3456.3
Ministry of Justice,HMCTS,23-Oct-12,532000-Tangible GBV - Additions,GZ999-North West Region,HENRY BOOT CONSTRUCTION LTD,2216248,"94,666.53",Liverpool QEII Crown Court - BMS and LV panel replacement as per your tender submission
Ministry of Justice,HMCTS,16-Oct-12,532000-Tangible GBV - Additions,GZ999-North West Region,HENRY BOOT CONSTRUCTION LTD,2207255,"119,138.31",Relocation of Employment Tribunal office to 3rd floor.
Ministry of Justice,HMCTS,12-Oct-12,610400-Debtors <1 year - Prepayments & Accrued Income,GZ999-North West Region,LANCASHIRE COUNTY COUNCIL,2204567,"108,992.21",service charge for use of Lancaster Castle 11-12
Ministry of Justice,HMCTS,16-Oct-12,222001-Maintenance,GZ999-North West Region,TELEREAL TRILLIUM,2207986,"68,587.42","Boulton House, Manchester - CPAR stage 8 approved"
Ministry of Justice,HMCTS,10-Oct-12,261000-Fuel and Utilities,GZ999-North West Region,UNITED UTILITIES WATER PLC,2202661,"32,609.41",NW regional consolidated A/C - water usage - United Utilities - Apr 11 - Mar 12
Ministry of Justice,HMCTS,05-Oct-12,610300-Debtors < 1 Year - Deposits & Advances,GZ999-North West Region,NEOPOST LTD,2195937,"130,226.55",Payment made for franking machine re-credits for HMCTS and MoJ
Ministry of Justice,HMCTS,12-Oct-12,610300-Debtors < 1 Year - Deposits & Advances,GZ999-North West Region,NEOPOST LTD,2204690,"151,719.00",Payment made for franking machine re-credits for HMCTS and MoJ
Ministry of Justice,HMCTS,19-Oct-12,610300-Debtors < 1 Year - Deposits & Advances,GZ999-North West Region,NEOPOST LTD,2213343,"135,273.00",Payment made for franking machine re-credits for HMCTS and MoJ
Ministry of Justice,HMCTS,26-Oct-12,610300-Debtors < 1 Year - Deposits & Advances,GZ999-North West Region,NEOPOST LTD,2222238,"132,595.00",Payment made for franking machine re-credits for HMCTS and MoJ
Ministry of Justice,HMCTS,16-Oct-12,222003-CIS Labour TFM Estates,GZ999-North West Region,G4S INTEGRATED SERVICES (UK) LTD,2207179,"299,053.15",North West Region - Managed and contractual hard services: April 12 - March 13. Contract no: 0073-4-Works/FM-SW-RFI refers.
Ministry of Justice,HMCTS,16-Oct-12,222003-CIS Labour TFM Estates,GZ999-North West Region,G4S INTEGRATED SERVICES (UK) LTD,2207179,"485,222.70",North West Region - Contactual Soft Services: April 12 - March 13 - Contract no: 0073-4-Works/FM-SW-RFI refers.
Ministry of Justice,HMCTS,16-Oct-12,222003-CIS Labour TFM Estates,GZ999-North West Region,G4S INTEGRATED SERVICES (UK) LTD,2207179,"113,243.91",NW Region - Ad hoc hard services: Apr 12 - Mar 13.
Ministry of Justice,HMCTS,23-Oct-12,222003-CIS Labour TFM Estates,GZ999-North West Region,G4S INTEGRATED SERVICES (UK) LTD,2216165,"32,042.22",File clearence (12-13W 009)
Ministry of Justice,HMCTS,24-Oct-12,261000-Fuel and Utilities,GZ999-North West Region,BRITISH GAS BUSINESS,2219167,"26,484.23",NW Region consolidated A/c - Electricity - British Gas - April 11 - October 12
Ministry of Justice,HMCTS,19-Oct-12,262000-SCA Costs,GZ999-North West Region,UK COURT SERVICES LTD,2214368,"491,885.00",Manchester- UK Court Services Ltd (WR12 7LJ) - Unitary Charges for Manchester PFI - Monthly
Ministry of Justice,HMCTS,23-Oct-12,610400-Debtors <1 year - Prepayments & Accrued Income,GZ999-North West Region,CARLISLE CITY COUNCIL,2215655,"26,793.00",
Ministry of Justice,HMCTS,23-Oct-12,610400-Debtors <1 year - Prepayments & Accrued Income,GZ999-North West Region,MANCHESTER CITY COUNCIL,2215769,"55,418.00",
Ministry of Justice,HMCTS,23-Oct-12,610400-Debtors <1 year - Prepayments & Accrued Income,GZ999-North West Region,MANCHESTER CITY COUNCIL,2215769,"27,251.00",
Ministry of Justice,HMCTS,23-Oct-12,610400-Debtors <1 year - Prepayments & Accrued Income,GZ999-North West Region,MANCHESTER CITY COUNCIL,2215769,"54,502.00",
Ministry of Justice,HMCTS,23-Oct-12,610400-Debtors <1 year - Prepayments & Accrued Income,GZ999-North West Region,MANCHESTER CITY COUNCIL,2215769,"240,450.00",Greater Manchester rates
Ministry of Justice,HMCTS,23-Oct-12,610400-Debtors <1 year - Prepayments & Accrued Income,GZ999-North West Region,PRESTON CITY COUNCIL,2215803,"54,044.00",
Ministry of Justice,HMCTS,23-Oct-12,610400-Debtors <1 year - Prepayments & Accrued Income,GZ999-North West Region,LIVERPOOL CITY COUNCIL,2215742,"132,820.00",Rates - Merseyside
Ministry of Justice,HMCTS,23-Oct-12,610400-Debtors <1 year - Prepayments & Accrued Income,GZ999-North West Region,LIVERPOOL CITY COUNCIL,2215742,"73,738.00",
Ministry of Justice,HMCTS,05-Oct-12,223001-Printing Postage and Office expenditure,HZ999-North East Region,ROYAL MAIL GROUP PLC,2196761,"127,295.77",North East Consol Account - Variable service contract continuation replacing PO 20000143837 - Royal Mail - 12/13
Ministry of Justice,HMCTS,19-Oct-12,261000-Fuel and Utilities,HZ999-North East Region,CORONA ENERGY,2213020,"31,907.04",North East Consol Account - Gas - Corona 12-13
Ministry of Justice,HMCTS,16-Oct-12,532000-Tangible GBV - Additions,HZ999-North East Region,SCHINDLER LTD,2207902,"30,282.71","Newcastle upon Tyne CCC - Replacement of 3 no Scenic Lifts			"
Ministry of Justice,HMCTS,09-Oct-12,532000-Tangible GBV - Additions,HZ999-North East Region,SCHINDLER LTD,2199365,"30,282.71","Newcastle upon Tyne CCC - Replacement of 3 no Scenic Lifts			"
Ministry of Justice,HMCTS,04-Oct-12,223000-Other Expenditure,HZ999-North East Region,NATIONAL OFFENDERS MANAGEMENT SERVICE (NOMS),1635,"80,340.68",National consolidated printing invoice
Ministry of Justice,HMCTS,09-Oct-12,610400-Debtors <1 year - Prepayments & Accrued Income,HZ999-North East Region,MPS2 LTD,2199153,"39,875.00",Rent
Ministry of Justice,HMCTS,16-Oct-12,223001-Printing Postage and Office expenditure,HZ999-North East Region,XEROX FINANCE LTD,2208093,"49,243.27",North East Region consolidated account - RENTAL CHARGES - 12/13 - Xerox Finance
Ministry of Justice,HMCTS,05-Oct-12,532000-Tangible GBV - Additions,HZ999-North East Region,ISG CONSTRUCTION LTD,2195777,"208,650.00","Wakefield County Court - Fit out works at  Emerald House, Mulberry Way, Wakefield, WF1 2QN			"
Ministry of Justice,HMCTS,23-Oct-12,532000-Tangible GBV - Additions,HZ999-North East Region,ISG CONSTRUCTION LTD,2216293,"100,000.00","Wakefield County Court - Fit out works at  Emerald House, Mulberry Way, Wakefield, WF1 2QN			"
Ministry of Justice,HMCTS,02-Oct-12,223000-Other Expenditure,HZ999-North East Region,ISG CONSTRUCTION LTD,2190959,"102,281.00",Emerald House - Supply funiture for Emerald House Wakefield as quoted
Ministry of Justice,HMCTS,16-Oct-12,222003-CIS Labour TFM Estates,HZ999-North East Region,G4S INTEGRATED SERVICES (UK) LTD,2207179,"562,300.45",HA102 Consolidated - North East Estate Managed Fixed Soft Services 12-13
Ministry of Justice,HMCTS,16-Oct-12,222003-CIS Labour TFM Estates,HZ999-North East Region,G4S INTEGRATED SERVICES (UK) LTD,2207179,"289,142.32",HA102 Consolidated - North East Estate Managed Hard Services 12-13
Ministry of Justice,HMCTS,09-Oct-12,262000-SCA Costs,HZ999-North East Region,MODERN COURTS (HUMBERSIDE) LTD,2199136,"314,091.34","Beverley, Hull & Bridlington - Modern Courts (Humberside) Ltd (BR8 7AG) - Unitary Charges for Humberside PFI - Monthly"
Ministry of Justice,HMCTS,09-Oct-12,262000-SCA Costs,HZ999-North East Region,MODERN COURTS (HUMBERSIDE) LTD,2199136,"45,987.73","Beverley, Hull & Bridlington - Modern Courts (Humberside) Ltd (BR8 7AG) - Unitary Charges for Humberside PFI - Monthly"
Ministry of Justice,HMCTS,24-Oct-12,261000-Fuel and Utilities,HZ999-North East Region,BRITISH GAS BUSINESS,2219167,"34,941.01",North East Consol Account - Electricity - British Gas 11-12 contract continuation replacing PO 20000128709
Ministry of Justice,HMCTS,24-Oct-12,261000-Fuel and Utilities,HZ999-North East Region,BRITISH GAS BUSINESS,2219167,"32,077.42",North East Consol Account - Electricity - British Gas 11-12 contract continuation replacing PO 20000128709
Ministry of Justice,HMCTS,23-Oct-12,262000-SCA Costs,HZ999-North East Region,PALECASTLE LTD,2217423,"96,927.17",Sheffield - Palecastle Ltd (WA14 2EX) - Unitary Charges for Sheffield PFI - Monthly
Ministry of Justice,HMCTS,23-Oct-12,610400-Debtors <1 year - Prepayments & Accrued Income,HZ999-North East Region,SHEFFIELD CITY COUNCIL,2215823,"83,814.00",Rates
Ministry of Justice,HMCTS,23-Oct-12,610400-Debtors <1 year - Prepayments & Accrued Income,HZ999-North East Region,BRADFORD METROPOLITAN COUNCIL,2215641,"56,334.00",Rates
Ministry of Justice,HMCTS,23-Oct-12,610400-Debtors <1 year - Prepayments & Accrued Income,HZ999-North East Region,HULL CITY COUNCIL,2215729,"31,831.00",Rates
Ministry of Justice,HMCTS,23-Oct-12,610400-Debtors <1 year - Prepayments & Accrued Income,HZ999-North East Region,NEWCASTLE UPON TYNE CITY COUNCIL,2215783,"67,784.00",Rates
Ministry of Justice,HMCTS,23-Oct-12,610400-Debtors <1 year - Prepayments & Accrued Income,HZ999-North East Region,ROTHERHAM METROPOLITAN BOROUGH COUNCIL,2215811,"26,564.00",Rates
Ministry of Justice,HMCTS,23-Oct-12,610400-Debtors <1 year - Prepayments & Accrued Income,HZ999-North East Region,SHEFFIELD CITY COUNCIL,2215823,"41,449.00",Rates
Ministry of Justice,HMCTS,23-Oct-12,610400-Debtors <1 year - Prepayments & Accrued Income,HZ999-North East Region,LEEDS CITY COUNCIL,2215739,"66,410.00",Rates
Ministry of Justice,HMCTS,23-Oct-12,610400-Debtors <1 year - Prepayments & Accrued Income,HZ999-North East Region,LEEDS CITY COUNCIL,2215739,"51,296.00",Rates
Ministry of Justice,HMCTS,23-Oct-12,610400-Debtors <1 year - Prepayments & Accrued Income,HZ999-North East Region,MIDDLESBROUGH COUNCIL,2215776,"64,578.00",Rates
Ministry of Justice,HMCTS,23-Oct-12,610400-Debtors <1 year - Prepayments & Accrued Income,HZ999-North East Region,MIDDLESBROUGH COUNCIL,2215776,"30,457.00",Rates
Ministry of Justice,HMCTS,19-Oct-12,226000-Court Costs,SL999-Centralised Frontline,MESSRS PLEXUS LAW#DX 144481,2212790,"26,429.70",
Ministry of Justice,HMCTS,05-Oct-12,226000-Court Costs,SL999-Centralised Frontline,MESSRS BYRNE & PARTNERSHIPS#DX 392,740687,"47,081.55",
Ministry of Justice,HMCTS,01-Oct-12,211000-Judicial Salaries - Salaried,SL999-Centralised Frontline,JUDICIAL PENSIONS SCHEME,1626,"2,722,382.53",
Ministry of Justice,HMCTS,01-Oct-12,211000-Judicial Salaries - Salaried,SL999-Centralised Frontline,JUDICIAL PENSIONS SCHEME,1626,"3,379,999.73",
Ministry of Justice,HMCTS,11-Oct-12,211000-Judicial Salaries - Salaried,SL999-Centralised Frontline,JUDICIAL PENSIONS SCHEME,1656,"2,717,970.12",
Ministry of Justice,HMCTS,11-Oct-12,211000-Judicial Salaries - Salaried,SL999-Centralised Frontline,JUDICIAL PENSIONS SCHEME,1656,"3,365,215.86",
Ministry of Justice,HMCTS,19-Oct-12,262000-SCA Costs,SL999-Centralised Frontline,CABLE & WIRELESS WORLDWIDE,2212968,"25,176.33",
Ministry of Justice,HMCTS,19-Oct-12,262000-SCA Costs,SL999-Centralised Frontline,CABLE & WIRELESS WORLDWIDE,2212968,"138,621.54",Prison  to Courts Video Links
Ministry of Justice,HMCTS,31-Oct-12,262000-SCA Costs,SL999-Centralised Frontline,CABLE & WIRELESS WORLDWIDE,2226975,"100,648.57",Prison & Courts Video Link - Refresh Phase 3 12/13
Ministry of Justice,HMCTS,18-Oct-12,710800-Creditor <1 yr - Third Party Monies,SL999-Centralised Frontline,ONE TIME CAPS,749559,,This is made up of multiple payments to third parties.
Ministry of Justice,HMCTS,25-Oct-12,710800-Creditor <1 yr - Third Party Monies,SL999-Centralised Frontline,ONE TIME CAPS,753171,,This is made up of multiple payments to third parties.
Ministry of Justice,HMCTS,25-Oct-12,710800-Creditor <1 yr - Third Party Monies,SL999-Centralised Frontline,ONE TIME CAPS,755270,,This is made up of multiple payments to third parties.
Ministry of Justice,HMCTS,25-Oct-12,710800-Creditor <1 yr - Third Party Monies,SL999-Centralised Frontline,ONE TIME CAPS,754625,,This is made up of multiple payments to third parties.
Ministry of Justice,HMCTS,04-Oct-12,710100-Creditors < 1 year - Other Taxation & Social Security,WW000-Balance Sheet,HMRC,1632,"185,022.41",
Ministry of Justice,HMCTS,04-Oct-12,710100-Creditors < 1 year - Other Taxation & Social Security,WW000-Balance Sheet,HMRC,1633,"53,294.52",
Ministry of Justice,HMCTS,23-Oct-12,610400-Debtors <1 year - Prepayments & Accrued Income,WW000-Balance Sheet,CITY OF LONDON,2215670,"64,588.00",
Ministry of Justice,HMCTS,23-Oct-12,610400-Debtors <1 year - Prepayments & Accrued Income,WW000-Balance Sheet,LONDON BOROUGH OF ISLINGTON,2215758,"80,782.00",
Ministry of Justice,HMCTS,23-Oct-12,610400-Debtors <1 year - Prepayments & Accrued Income,WW000-Balance Sheet,LONDON BOROUGH OF CAMDEN,2215747,"31,309.00",
Ministry of Justice,HMCTS,23-Oct-12,610400-Debtors <1 year - Prepayments & Accrued Income,WW000-Balance Sheet,LONDON BOROUGH OF CAMDEN,2215747,"40,152.00",
Ministry of Justice,HMCTS,23-Oct-12,610400-Debtors <1 year - Prepayments & Accrued Income,WW000-Balance Sheet,LONDON BOROUGH OF CAMDEN,2215747,"58,794.00",
